Workbook

Sheet Details (hidden)
B1: ANALYSISTAB MULTIPLE PROJECTS - GANTT TEMPLATE
B2: Works on Excel 2007 and Above
B4: Info | C4: Project Plan and Gant Chart Template helps you to plan a project timelines and resource. You can change the default data and formula to meet your needs. | H4: Please Note: We have protected the worksheets to avoid the mistakes by chance. You can use the password 'PNRao' to unprotect the Worksheets
B8: Usage | C8: We start plannign our projects after initial meetings and agreement. We plan our resource and timelines based on the requirements, deliverables and avaialble team and bandwidth. Project plan template helps to track all the tasks and its progress and status of each task. You can daily update the templates and share with your teams and customer/stakeholders to update the project status and progress. This is the must have tool for every project.
B12: Please Share | C12: Project Tracking/ Project Plan / Gant. Chart Template is a Free and lite version of ANALYSISTABS' Project Management Templates. Please feel free to use, modify and share with your coleagues. | F12: Please check our Premium Templates Bundle, all you need for effective project planning, management and presentations. Our premium templates are professional, powerfull, easy to customize and unique in style. Please visit analysistabs.com and grab our powerfull templates for nominal cost.
B23: Please Let us know your feedback | I23: info@analysistabs.com
B24: Templates By ANALYSISTABS.For more templates and tools, please visit us: | I24: htps://analysistabs.com

Sheet Project Plan
C1: Please Select a Project to View Related Tasks & Gantt. | H1: 4 | K1: PJ04750 Talent Review Tool | L1: =VLOOKUP(K1,'Projects Summary'!B3:C14,2,FALSE) &" Tasks Found" -> 87 Tasks Found | T1: Date Interval: | U1: 7 | V1: Day(s)
D2: Project Plan | H2: Tasks Scrool | I2: Task ID | J2: WBS# | K2: TaskS | L2: Responsible | M2: Start Date | N2: End Date | O2: Days Req. | P2: Status | Q2: Days Comp. | R2: Project | S2: =E8 -> 2019-12-12 | T2: =S2+$U$1 -> 2019-12-19 | U2: =T2+$U$1 -> 2019-12-26 | V2: 2020-01-02 | W2: 2020-01-09 | X2: 2020-01-16 | Y2: 2020-01-23 | Z2: 2020-01-30 | AA2: 2020-02-06 | AB2: 2020-02-13 | AC2: 2020-02-20 | AD2: 2020-02-27 | AE2: 2020-03-05 | AF2: 2020-03-12 | AG2: 2020-03-19 | AH2: 2020-03-26
H3: 100 | I3: =IFERROR(IF(K1='Projects Summary'!B3,0,MATCH(K1,'Data Sheet'!A:A,0)-2)+H3,D18) -> 137 | J3: -1 | K3: 0 | L3: 1 | M3: 2 | N3: 4 | O3: 3 | P3: 5 | R3: -2
C4: Project Name | E4: =VLOOKUP('Project Plan'!K1,'Projects Summary'!B2:J14,1,FALSE) -> PJ04750 Talent Review Tool | I4: =I3+1 -> 138 | J4: =IF(K4=0,"",INDEX(Table1[],I4,2)) -> 9 | K4: =REPT(" ",(LEN(INDEX(Table1[],I4,2))-LEN(SUBSTITUTE(INDEX(Table1[],I4,2),".",""))))&OFFSET('Data Sheet'!$C$1,'Project Plan'!$I4,'Project Plan'!K$3) -> Integrations | L4: =IF(K4=0,"",OFFSET('Data Sheet'!$C$1,'Project Plan'!$I4,'Project Plan'!L$3)) -> ITSPS | M4: =IF(K4=0,"",OFFSET('Data Sheet'!$C$1,'Project Plan'!$I4,'Project Plan'!M$3)) -> 2020-04-01 | N4: =IF(K4=0,"",OFFSET('Data Sheet'!$C$1,'Project Plan'!$I4,'Project Plan'!O$3)) -> 2020-05-14 | O4: =IF(K4=0,"",OFFSET('Data Sheet'!$C$1,'Project Plan'!$I4,'Project Plan'!N$3)) -> 0 | P4: =IF(K4=0,"",OFFSET('Data Sheet'!$C$1,'Project Plan'!$I4,'Project Plan'!P$3)) -> 0 | Q4: =IF(K4=0,"",O4*P4) -> 0 | R4: =OFFSET('Data Sheet'!$C$1,'Project Plan'!$I4,'Project Plan'!R$3) -> Mobility Preference
C5: Customer Name | E5: =VLOOKUP('Project Plan'!K1,'Projects Summary'!B2:J14,8,FALSE) -> HRDCM - Careers and Mobility | I5: =I4+1 -> 139 | J5: =IF(K5=0,"",INDEX(Table1[],I5,2)) -> 9.1 | K5: =REPT(" ",(LEN(INDEX(Table1[],I5,2))-LEN(SUBSTITUTE(INDEX(Table1[],I5,2),".",""))))&OFFSET('Data Sheet'!$C$1,'Project Plan'!$I5,'Project Plan'!K$3) -> Integration to IDR | L5: =IF(K5=0,"",OFFSET('Data Sheet'!$C$1,'Project Plan'!$I5,'Project Plan'!L$3)) -> ITSPS | M5: =IF(K5=0,"",OFFSET('Data Sheet'!$C$1,'Project Plan'!$I5,'Project Plan'!M$3)) -> 2020-04-30 | N5: =IF(K5=0,"",OFFSET('Data Sheet'!$C$1,'Project Plan'!$I5,'Project Plan'!O$3)) -> 2020-05-14 | O5: =IF(K5=0,"",OFFSET('Data Sheet'!$C$1,'Project Plan'!$I5,'Project Plan'!N$3)) -> 10 | P5: =IF(K5=0,"",OFFSET('Data Sheet'!$C$1,'Project Plan'!$I5,'Project Plan'!P$3)) -> 0 | Q5: 0 | R5: =OFFSET('Data Sheet'!$C$1,'Project Plan'!$I5,'Project Plan'!R$3) -> Mobility Preference
C6: Project Manager | E6: =VLOOKUP('Project Plan'!K1,'Projects Summary'!B2:J14,9,FALSE) -> Cathy | I6: =I5+1 -> 140 | J6: =IF(K6=0,"",INDEX(Table1[],I6,2)) -> 9.2 | K6: =REPT(" ",(LEN(INDEX(Table1[],I6,2))-LEN(SUBSTITUTE(INDEX(Table1[],I6,2),".",""))))&OFFSET('Data Sheet'!$C$1,'Project Plan'!$I6,'Project Plan'!K$3) -> Integration to Pilat | L6: =IF(K6=0,"",OFFSET('Data Sheet'!$C$1,'Project Plan'!$I6,'Project Plan'!L$3)) -> ITSPS | M6: =IF(K6=0,"",OFFSET('Data Sheet'!$C$1,'Project Plan'!$I6,'Project Plan'!M$3)) -> 2020-04-01 | N6: =IF(K6=0,"",OFFSET('Data Sheet'!$C$1,'Project Plan'!$I6,'Project Plan'!O$3)) -> 2020-04-15 | O6: =IF(K6=0,"",OFFSET('Data Sheet'!$C$1,'Project Plan'!$I6,'Project Plan'!N$3)) -> 10 | P6: =IF(K6=0,"",OFFSET('Data Sheet'!$C$1,'Project Plan'!$I6,'Project Plan'!P$3)) -> 0 | Q6: 0 | R6: =OFFSET('Data Sheet'!$C$1,'Project Plan'!$I6,'Project Plan'!R$3) -> Mobility Preference
I7: 141 | J7: =IF(K7=0,"",INDEX(Table1[],I7,2)) -> 10 | K7: =REPT(" ",(LEN(INDEX(Table1[],I7,2))-LEN(SUBSTITUTE(INDEX(Table1[],I7,2),".",""))))&OFFSET('Data Sheet'!$C$1,'Project Plan'!$I7,'Project Plan'!K$3) -> Stabilization | L7: =IF(K7=0,"",OFFSET('Data Sheet'!$C$1,'Project Plan'!$I7,'Project Plan'!L$3)) -> ITSPS | M7: =IF(K7=0,"",OFFSET('Data Sheet'!$C$1,'Project Plan'!$I7,'Project Plan'!M$3)) -> 2020-04-01 | N7: =IF(K7=0,"",OFFSET('Data Sheet'!$C$1,'Project Plan'!$I7,'Project Plan'!O$3)) -> 2020-12-30 | O7: =IF(K7=0,"",OFFSET('Data Sheet'!$C$1,'Project Plan'!$I7,'Project Plan'!N$3)) -> 60 | P7: =IF(K7=0,"",OFFSET('Data Sheet'!$C$1,'Project Plan'!$I7,'Project Plan'!P$3)) -> 0 | Q7: 0 | R7: =OFFSET('Data Sheet'!$C$1,'Project Plan'!$I7,'Project Plan'!R$3) -> Mobility Preference
C8: Start Date | E8: =VLOOKUP('Project Plan'!K1,'Projects Summary'!B2:G14,3,FALSE) -> 2019-12-12 | I8: 142 | J8: =IF(K8=0,"",INDEX(Table1[],I8,2)) -> 1 | K8: =REPT(" ",(LEN(INDEX(Table1[],I8,2))-LEN(SUBSTITUTE(INDEX(Table1[],I8,2),".",""))))&OFFSET('Data Sheet'!$C$1,'Project Plan'!$I8,'Project Plan'!K$3) -> SPO QA Site Preparation | L8: =IF(K8=0,"",OFFSET('Data Sheet'!$C$1,'Project Plan'!$I8,'Project Plan'!L$3)) -> New Person | M8: =IF(K8=0,"",OFFSET('Data Sheet'!$C$1,'Project Plan'!$I8,'Project Plan'!M$3)) -> 2020-01-31 | N8: =IF(K8=0,"",OFFSET('Data Sheet'!$C$1,'Project Plan'!$I8,'Project Plan'!O$3)) -> 2020-12-30 | O8: =IF(K8=0,"",OFFSET('Data Sheet'!$C$1,'Project Plan'!$I8,'Project Plan'!N$3)) -> 0.5 | P8: =IF(K8=0,"",OFFSET('Data Sheet'!$C$1,'Project Plan'!$I8,'Project Plan'!P$3)) -> 0 | Q8: 0 | R8: =OFFSET('Data Sheet'!$C$1,'Project Plan'!$I8,'Project Plan'!R$3) -> Language Tracking
C9: End Date | E9: =VLOOKUP('Project Plan'!K1,'Projects Summary'!B2:G14,4,FALSE) -> 2020-03-30 | I9: 143 | J9: =IF(K9=0,"",INDEX(Table1[],I9,2)) -> 2 | K9: =REPT(" ",(LEN(INDEX(Table1[],I9,2))-LEN(SUBSTITUTE(INDEX(Table1[],I9,2),".",""))))&OFFSET('Data Sheet'!$C$1,'Project Plan'!$I9,'Project Plan'!K$3) -> Content Migration | L9: =IF(K9=0,"",OFFSET('Data Sheet'!$C$1,'Project Plan'!$I9,'Project Plan'!L$3)) -> New Person | M9: =IF(K9=0,"",OFFSET('Data Sheet'!$C$1,'Project Plan'!$I9,'Project Plan'!M$3)) -> 2020-02-03 | N9: =IF(K9=0,"",OFFSET('Data Sheet'!$C$1,'Project Plan'!$I9,'Project Plan'!O$3)) -> 2020-12-30 | O9: =IF(K9=0,"",OFFSET('Data Sheet'!$C$1,'Project Plan'!$I9,'Project Plan'!N$3)) -> 5 | P9: =IF(K9=0,"",OFFSET('Data Sheet'!$C$1,'Project Plan'!$I9,'Project Plan'!P$3)) -> 0 | Q9: 0 | R9: =OFFSET('Data Sheet'!$C$1,'Project Plan'!$I9,'Project Plan'!R$3) -> Language Tracking
C10: Overall Progress | E10: =IFERROR(VLOOKUP('Project Plan'!K1,'Projects Summary'!B2:G14,6,FALSE),"") -> 0.07090909091 | I10: 144 | J10: =IF(K10=0,"",INDEX(Table1[],I10,2)) -> 3 | K10: =REPT(" ",(LEN(INDEX(Table1[],I10,2))-LEN(SUBSTITUTE(INDEX(Table1[],I10,2),".",""))))&OFFSET('Data Sheet'!$C$1,'Project Plan'!$I10,'Project Plan'!K$3) -> UI Migration | L10: =IF(K10=0,"",OFFSET('Data Sheet'!$C$1,'Project Plan'!$I10,'Project Plan'!L$3)) -> New Person | M10: =IF(K10=0,"",OFFSET('Data Sheet'!$C$1,'Project Plan'!$I10,'Project Plan'!M$3)) -> 2020-02-10 | N10: =IF(K10=0,"",OFFSET('Data Sheet'!$C$1,'Project Plan'!$I10,'Project Plan'!O$3)) -> 2020-12-30 | O10: =IF(K10=0,"",OFFSET('Data Sheet'!$C$1,'Project Plan'!$I10,'Project Plan'!N$3)) -> 1 | P10: =IF(K10=0,"",OFFSET('Data Sheet'!$C$1,'Project Plan'!$I10,'Project Plan'!P$3)) -> 0 | Q10: 0 | R10: =OFFSET('Data Sheet'!$C$1,'Project Plan'!$I10,'Project Plan'!R$3) -> Language Tracking
E11: =1-E10 -> 0.9290909091 | I11: 145 | J11: =IF(K11=0,"",INDEX(Table1[],I11,2)) -> 4 | K11: =REPT(" ",(LEN(INDEX(Table1[],I11,2))-LEN(SUBSTITUTE(INDEX(Table1[],I11,2),".",""))))&OFFSET('Data Sheet'!$C$1,'Project Plan'!$I11,'Project Plan'!K$3) -> Site Branding | L11: =IF(K11=0,"",OFFSET('Data Sheet'!$C$1,'Project Plan'!$I11,'Project Plan'!L$3)) -> New Person | M11: =IF(K11=0,"",OFFSET('Data Sheet'!$C$1,'Project Plan'!$I11,'Project Plan'!M$3)) -> 2020-02-11 | N11: =IF(K11=0,"",OFFSET('Data Sheet'!$C$1,'Project Plan'!$I11,'Project Plan'!O$3)) -> 2020-12-30 | O11: =IF(K11=0,"",OFFSET('Data Sheet'!$C$1,'Project Plan'!$I11,'Project Plan'!N$3)) -> 1 | P11: =IF(K11=0,"",OFFSET('Data Sheet'!$C$1,'Project Plan'!$I11,'Project Plan'!P$3)) -> 0 | Q11: 0 | R11: =OFFSET('Data Sheet'!$C$1,'Project Plan'!$I11,'Project Plan'!R$3) -> Language Tracking
C12: Days Required 6 | I12: 146 | J12: =IF(K12=0,"",INDEX(Table1[],I12,2)) -> 5 | K12: =REPT(" ",(LEN(INDEX(Table1[],I12,2))-LEN(SUBSTITUTE(INDEX(Table1[],I12,2),".",""))))&OFFSET('Data Sheet'!$C$1,'Project Plan'!$I12,'Project Plan'!K$3) -> Out of Box WebPart migration | L12: =IF(K12=0,"",OFFSET('Data Sheet'!$C$1,'Project Plan'!$I12,'Project Plan'!L$3)) -> New Person | M12: =IF(K12=0,"",OFFSET('Data Sheet'!$C$1,'Project Plan'!$I12,'Project Plan'!M$3)) -> 2020-02-12 | N12: =IF(K12=0,"",OFFSET('Data Sheet'!$C$1,'Project Plan'!$I12,'Project Plan'!O$3)) -> 2020-12-30 | O12: =IF(K12=0,"",OFFSET('Data Sheet'!$C$1,'Project Plan'!$I12,'Project Plan'!N$3)) -> 20 | P12: =IF(K12=0,"",OFFSET('Data Sheet'!$C$1,'Project Plan'!$I12,'Project Plan'!P$3)) -> 0 | Q12: 0 | R12: =OFFSET('Data Sheet'!$C$1,'Project Plan'!$I12,'Project Plan'!R$3) -> Language Tracking
C13: =E9-E8 &" Day Project" -> 109 Day Project | I13: 147 | J13: =IF(K13=0,"",INDEX(Table1[],I13,2)) -> 6 | K13: =REPT(" ",(LEN(INDEX(Table1[],I13,2))-LEN(SUBSTITUTE(INDEX(Table1[],I13,2),".",""))))&OFFSET('Data Sheet'!$C$1,'Project Plan'!$I13,'Project Plan'!K$3) -> Custom Solutions migration | L13: =IF(K13=0,"",OFFSET('Data Sheet'!$C$1,'Project Plan'!$I13,'Project Plan'!L$3)) -> Kalaivani | M13: =IF(K13=0,"",OFFSET('Data Sheet'!$C$1,'Project Plan'!$I13,'Project Plan'!M$3)) -> 2020-02-12 | N13: =IF(K13=0,"",OFFSET('Data Sheet'!$C$1,'Project Plan'!$I13,'Project Plan'!O$3)) -> 2020-12-30 | O13: =IF(K13=0,"",OFFSET('Data Sheet'!$C$1,'Project Plan'!$I13,'Project Plan'!N$3)) -> 55 | P13: =IF(K13=0,"",OFFSET('Data Sheet'!$C$1,'Project Plan'!$I13,'Project Plan'!P$3)) -> 0 | Q13: 0 | R13: =OFFSET('Data Sheet'!$C$1,'Project Plan'!$I13,'Project Plan'!R$3) -> Language Tracking
C14: =VLOOKUP('Project Plan'!K1,'Projects Summary'!B2:G14,5,FALSE) &" Man Days" -> 302.5 Man Days | I14: 148 | J14: =IF(K14=0,"",INDEX(Table1[],I14,2)) -> 7 | K14: =REPT(" ",(LEN(INDEX(Table1[],I14,2))-LEN(SUBSTITUTE(INDEX(Table1[],I14,2),".",""))))&OFFSET('Data Sheet'!$C$1,'Project Plan'!$I14,'Project Plan'!K$3) -> Unit Testing | L14: =IF(K14=0,"",OFFSET('Data Sheet'!$C$1,'Project Plan'!$I14,'Project Plan'!L$3)) -> New Person + Kalaivani | M14: =IF(K14=0,"",OFFSET('Data Sheet'!$C$1,'Project Plan'!$I14,'Project Plan'!M$3)) -> 2020-04-23 | N14: =IF(K14=0,"",OFFSET('Data Sheet'!$C$1,'Project Plan'!$I14,'Project Plan'!O$3)) -> 2020-12-30 | O14: =IF(K14=0,"",OFFSET('Data Sheet'!$C$1,'Project Plan'!$I14,'Project Plan'!N$3)) -> 5 | P14: =IF(K14=0,"",OFFSET('Data Sheet'!$C$1,'Project Plan'!$I14,'Project Plan'!P$3)) -> 0 | Q14: 0 | R14: =OFFSET('Data Sheet'!$C$1,'Project Plan'!$I14,'Project Plan'!R$3) -> Language Tracking
I15: 149 | J15: =IF(K15=0,"",INDEX(Table1[],I15,2)) -> 8 | K15: =REPT(" ",(LEN(INDEX(Table1[],I15,2))-LEN(SUBSTITUTE(INDEX(Table1[],I15,2),".",""))))&OFFSET('Data Sheet'!$C$1,'Project Plan'!$I15,'Project Plan'!K$3) -> System Testing | L15: =IF(K15=0,"",OFFSET('Data Sheet'!$C$1,'Project Plan'!$I15,'Project Plan'!L$3)) -> New Person + Kalaivani | M15: =IF(K15=0,"",OFFSET('Data Sheet'!$C$1,'Project Plan'!$I15,'Project Plan'!M$3)) -> 2020-05-01 | N15: =IF(K15=0,"",OFFSET('Data Sheet'!$C$1,'Project Plan'!$I15,'Project Plan'!O$3)) -> 2020-12-30 | O15: =IF(K15=0,"",OFFSET('Data Sheet'!$C$1,'Project Plan'!$I15,'Project Plan'!N$3)) -> 5 | P15: =IF(K15=0,"",OFFSET('Data Sheet'!$C$1,'Project Plan'!$I15,'Project Plan'!P$3)) -> 0 | Q15: 0 | R15: =OFFSET('Data Sheet'!$C$1,'Project Plan'!$I15,'Project Plan'!R$3) -> Language Tracking
C16: Gantt. Scroll | I16: 150 | J16: =IF(K16=0,"",INDEX(Table1[],I16,2)) -> 9 | K16: =REPT(" ",(LEN(INDEX(Table1[],I16,2))-LEN(SUBSTITUTE(INDEX(Table1[],I16,2),".",""))))&OFFSET('Data Sheet'!$C$1,'Project Plan'!$I16,'Project Plan'!K$3) -> UAT | L16: =IF(K16=0,"",OFFSET('Data Sheet'!$C$1,'Project Plan'!$I16,'Project Plan'!L$3)) -> Business | M16: =IF(K16=0,"",OFFSET('Data Sheet'!$C$1,'Project Plan'!$I16,'Project Plan'!M$3)) -> 2020-05-11 | N16: =IF(K16=0,"",OFFSET('Data Sheet'!$C$1,'Project Plan'!$I16,'Project Plan'!O$3)) -> 2020-12-30 | O16: =IF(K16=0,"",OFFSET('Data Sheet'!$C$1,'Project Plan'!$I16,'Project Plan'!N$3)) -> 5 | P16: =IF(K16=0,"",OFFSET('Data Sheet'!$C$1,'Project Plan'!$I16,'Project Plan'!P$3)) -> 0 | Q16: 0 | R16: =OFFSET('Data Sheet'!$C$1,'Project Plan'!$I16,'Project Plan'!R$3) -> Language Tracking
I17: 151 | J17: =IF(K17=0,"",INDEX(Table1[],I17,2)) -> 10 | K17: =REPT(" ",(LEN(INDEX(Table1[],I17,2))-LEN(SUBSTITUTE(INDEX(Table1[],I17,2),".",""))))&OFFSET('Data Sheet'!$C$1,'Project Plan'!$I17,'Project Plan'!K$3) -> Production Preparation | L17: =IF(K17=0,"",OFFSET('Data Sheet'!$C$1,'Project Plan'!$I17,'Project Plan'!L$3)) -> Dev Team | M17: =IF(K17=0,"",OFFSET('Data Sheet'!$C$1,'Project Plan'!$I17,'Project Plan'!M$3)) -> 2020-05-04 | N17: =IF(K17=0,"",OFFSET('Data Sheet'!$C$1,'Project Plan'!$I17,'Project Plan'!O$3)) -> 2020-12-30 | O17: =IF(K17=0,"",OFFSET('Data Sheet'!$C$1,'Project Plan'!$I17,'Project Plan'!N$3)) -> 5 | P17: =IF(K17=0,"",OFFSET('Data Sheet'!$C$1,'Project Plan'!$I17,'Project Plan'!P$3)) -> 0 | Q17: 0 | R17: =OFFSET('Data Sheet'!$C$1,'Project Plan'!$I17,'Project Plan'!R$3) -> Language Tracking
C18: Total Tasks | D18: =IF(K1="All Projects",COUNTA(Table1[Project]),COUNTIF(Table1[Project],K1)) -> 87 | E18: Remarks | I18: 152 | J18: =IF(K18=0,"",INDEX(Table1[],I18,2)) -> 11 | K18: =REPT(" ",(LEN(INDEX(Table1[],I18,2))-LEN(SUBSTITUTE(INDEX(Table1[],I18,2),".",""))))&OFFSET('Data Sheet'!$C$1,'Project Plan'!$I18,'Project Plan'!K$3) -> Production Deployment | L18: =IF(K18=0,"",OFFSET('Data Sheet'!$C$1,'Project Plan'!$I18,'Project Plan'!L$3)) -> Dev Team | M18: =IF(K18=0,"",OFFSET('Data Sheet'!$C$1,'Project Plan'!$I18,'Project Plan'!M$3)) -> 2020-05-11 | N18: =IF(K18=0,"",OFFSET('Data Sheet'!$C$1,'Project Plan'!$I18,'Project Plan'!O$3)) -> 2020-12-30 | O18: =IF(K18=0,"",OFFSET('Data Sheet'!$C$1,'Project Plan'!$I18,'Project Plan'!N$3)) -> 10 | P18: =IF(K18=0,"",OFFSET('Data Sheet'!$C$1,'Project Plan'!$I18,'Project Plan'!P$3)) -> 0 | Q18: 0 | R18: =OFFSET('Data Sheet'!$C$1,'Project Plan'!$I18,'Project Plan'!R$3) -> Language Tracking
C19: Completed(100%) | D19: =IF(K1="All Projects",COUNTIFS(Table1[Progress],"=1"),COUNTIFS(Table1[Project],K1,Table1[Progress],"=1")) -> 0 | I19: 153 | J19: =IF(K19=0,"",INDEX(Table1[],I19,2)) -> 12 | K19: =REPT(" ",(LEN(INDEX(Table1[],I19,2))-LEN(SUBSTITUTE(INDEX(Table1[],I19,2),".",""))))&OFFSET('Data Sheet'!$C$1,'Project Plan'!$I19,'Project Plan'!K$3) -> Go Live | L19: =IF(K19=0,"",OFFSET('Data Sheet'!$C$1,'Project Plan'!$I19,'Project Plan'!L$3)) -> NA | M19: =IF(K19=0,"",OFFSET('Data Sheet'!$C$1,'Project Plan'!$I19,'Project Plan'!M$3)) -> 2020-05-25 | N19: =IF(K19=0,"",OFFSET('Data Sheet'!$C$1,'Project Plan'!$I19,'Project Plan'!O$3)) -> 2020-12-30 | O19: =IF(K19=0,"",OFFSET('Data Sheet'!$C$1,'Project Plan'!$I19,'Project Plan'!N$3)) -> 0 | P19: =IF(K19=0,"",OFFSET('Data Sheet'!$C$1,'Project Plan'!$I19,'Project Plan'!P$3)) -> 0 | Q19: 0 | R19: =OFFSET('Data Sheet'!$C$1,'Project Plan'!$I19,'Project Plan'!R$3) -> Language Tracking
C20: Inprogress(1-99%) | D20: =IF(K1="All Projects",COUNTIFS(Table1[Progress],">0",Table1[Progress],"<1"),COUNTIFS(Table1[Progress],">0",Table1[Progress],"<1",Table1[Project],K1)) -> 7 | I20: 154 | J20: =IF(K20=0,"",INDEX(Table1[],I20,2)) -> 1 | K20: =REPT(" ",(LEN(INDEX(Table1[],I20,2))-LEN(SUBSTITUTE(INDEX(Table1[],I20,2),".",""))))&OFFSET('Data Sheet'!$C$1,'Project Plan'!$I20,'Project Plan'!K$3) -> SPO QA Site Preparation | L20: =IF(K20=0,"",OFFSET('Data Sheet'!$C$1,'Project Plan'!$I20,'Project Plan'!L$3)) -> Kalaivani | M20: =IF(K20=0,"",OFFSET('Data Sheet'!$C$1,'Project Plan'!$I20,'Project Plan'!M$3)) -> 2019-11-25 | N20: =IF(K20=0,"",OFFSET('Data Sheet'!$C$1,'Project Plan'!$I20,'Project Plan'!O$3)) -> 2020-12-30 | O20: =IF(K20=0,"",OFFSET('Data Sheet'!$C$1,'Project Plan'!$I20,'Project Plan'!N$3)) -> 0.5 | P20: =IF(K20=0,"",OFFSET('Data Sheet'!$C$1,'Project Plan'!$I20,'Project Plan'!P$3)) -> 1 | R20: =OFFSET('Data Sheet'!$C$1,'Project Plan'!$I20,'Project Plan'!R$3) -> Coaching
C21: 1-25% | D21: =IF(K1="All Projects",COUNTIFS(Table1[Progress],">0",Table1[Progress],"<=.25"),COUNTIFS(Table1[Progress],">0",Table1[Progress],"<=.25",Table1[Project],K1)) -> 4 | I21: 155 | J21: =IF(K21=0,"",INDEX(Table1[],I21,2)) -> 2 | K21: =REPT(" ",(LEN(INDEX(Table1[],I21,2))-LEN(SUBSTITUTE(INDEX(Table1[],I21,2),".",""))))&OFFSET('Data Sheet'!$C$1,'Project Plan'!$I21,'Project Plan'!K$3) -> Content Migration | L21: =IF(K21=0,"",OFFSET('Data Sheet'!$C$1,'Project Plan'!$I21,'Project Plan'!L$3)) -> Kalaivani | M21: =IF(K21=0,"",OFFSET('Data Sheet'!$C$1,'Project Plan'!$I21,'Project Plan'!M$3)) -> 2019-11-25 | N21: =IF(K21=0,"",OFFSET('Data Sheet'!$C$1,'Project Plan'!$I21,'Project Plan'!O$3)) -> 2020-12-30 | O21: =IF(K21=0,"",OFFSET('Data Sheet'!$C$1,'Project Plan'!$I21,'Project Plan'!N$3)) -> 5 | P21: =IF(K21=0,"",OFFSET('Data Sheet'!$C$1,'Project Plan'!$I21,'Project Plan'!P$3)) -> 1 | Q21: 5 | R21: =OFFSET('Data Sheet'!$C$1,'Project Plan'!$I21,'Project Plan'!R$3) -> Coaching
C22: 26-50% | D22: =IF(K1="All Projects",COUNTIFS(Table1[Progress],">.25",Table1[Progress],"<=.5"),COUNTIFS(Table1[Progress],">.25",Table1[Progress],"<=.5",Table1[Project],K1)) -> 1 | I22: 156 | J22: =IF(K22=0,"",INDEX(Table1[],I22,2)) -> 3 | K22: =REPT(" ",(LEN(INDEX(Table1[],I22,2))-LEN(SUBSTITUTE(INDEX(Table1[],I22,2),".",""))))&OFFSET('Data Sheet'!$C$1,'Project Plan'!$I22,'Project Plan'!K$3) -> UI Migration | L22: =IF(K22=0,"",OFFSET('Data Sheet'!$C$1,'Project Plan'!$I22,'Project Plan'!L$3)) -> Arul | M22: =IF(K22=0,"",OFFSET('Data Sheet'!$C$1,'Project Plan'!$I22,'Project Plan'!M$3)) -> 2019-12-02 | N22: =IF(K22=0,"",OFFSET('Data Sheet'!$C$1,'Project Plan'!$I22,'Project Plan'!O$3)) -> 2020-12-30 | O22: =IF(K22=0,"",OFFSET('Data Sheet'!$C$1,'Project Plan'!$I22,'Project Plan'!N$3)) -> 1 | P22: =IF(K22=0,"",OFFSET('Data Sheet'!$C$1,'Project Plan'!$I22,'Project Plan'!P$3)) -> 1 | Q22: 1 | R22: =OFFSET('Data Sheet'!$C$1,'Project Plan'!$I22,'Project Plan'!R$3) -> Coaching
C23: 51-75% | D23: =IF(K1="All Projects",COUNTIFS(Table1[Progress],">.5",Table1[Progress],"<=.75"),COUNTIFS(Table1[Progress],">.5",Table1[Progress],"<=.75",Table1[Project],K1)) -> 1 | I23: 157 | J23: =IF(K23=0,"",INDEX(Table1[],I23,2)) -> 4 | K23: =REPT(" ",(LEN(INDEX(Table1[],I23,2))-LEN(SUBSTITUTE(INDEX(Table1[],I23,2),".",""))))&OFFSET('Data Sheet'!$C$1,'Project Plan'!$I23,'Project Plan'!K$3) -> Site Branding | L23: =IF(K23=0,"",OFFSET('Data Sheet'!$C$1,'Project Plan'!$I23,'Project Plan'!L$3)) -> Arul | M23: =IF(K23=0,"",OFFSET('Data Sheet'!$C$1,'Project Plan'!$I23,'Project Plan'!M$3)) -> 2019-12-03 | N23: =IF(K23=0,"",OFFSET('Data Sheet'!$C$1,'Project Plan'!$I23,'Project Plan'!O$3)) -> 2020-12-30 | O23: =IF(K23=0,"",OFFSET('Data Sheet'!$C$1,'Project Plan'!$I23,'Project Plan'!N$3)) -> 1 | P23: =IF(K23=0,"",OFFSET('Data Sheet'!$C$1,'Project Plan'!$I23,'Project Plan'!P$3)) -> 1 | Q23: 1 | R23: =OFFSET('Data Sheet'!$C$1,'Project Plan'!$I23,'Project Plan'!R$3) -> Coaching
C24: 76-99% | D24: =IF(K1="All Projects",COUNTIFS(Table1[Progress],">.75",Table1[Progress],"<1"),COUNTIFS(Table1[Progress],">.75",Table1[Progress],"<1",Table1[Project],K1)) -> 1 | I24: 158 | J24: =IF(K24=0,"",INDEX(Table1[],I24,2)) -> 5 | K24: =REPT(" ",(LEN(INDEX(Table1[],I24,2))-LEN(SUBSTITUTE(INDEX(Table1[],I24,2),".",""))))&OFFSET('Data Sheet'!$C$1,'Project Plan'!$I24,'Project Plan'!K$3) -> Out of Box WebPart migration | L24: =IF(K24=0,"",OFFSET('Data Sheet'!$C$1,'Project Plan'!$I24,'Project Plan'!L$3)) -> Arul | M24: =IF(K24=0,"",OFFSET('Data Sheet'!$C$1,'Project Plan'!$I24,'Project Plan'!M$3)) -> 2019-12-04 | N24: =IF(K24=0,"",OFFSET('Data Sheet'!$C$1,'Project Plan'!$I24,'Project Plan'!O$3)) -> 2020-12-30 | O24: =IF(K24=0,"",OFFSET('Data Sheet'!$C$1,'Project Plan'!$I24,'Project Plan'!N$3)) -> 20 | P24: =IF(K24=0,"",OFFSET('Data Sheet'!$C$1,'Project Plan'!$I24,'Project Plan'!P$3)) -> 1 | Q24: 20 | R24: =OFFSET('Data Sheet'!$C$1,'Project Plan'!$I24,'Project Plan'!R$3) -> Coaching
C25: Not Started (0%) | D25: =IF(K1="All Projects",COUNTIFS(Table1[Progress],0),COUNTIFS(Table1[Project],K1,Table1[Progress],0)) -> 73 | I25: 159 | J25: =IF(K25=0,"",INDEX(Table1[],I25,2)) -> 6 | K25: =REPT(" ",(LEN(INDEX(Table1[],I25,2))-LEN(SUBSTITUTE(INDEX(Table1[],I25,2),".",""))))&OFFSET('Data Sheet'!$C$1,'Project Plan'!$I25,'Project Plan'!K$3) -> Custom Solutions migration | L25: =IF(K25=0,"",OFFSET('Data Sheet'!$C$1,'Project Plan'!$I25,'Project Plan'!L$3)) -> Kalaivani | M25: =IF(K25=0,"",OFFSET('Data Sheet'!$C$1,'Project Plan'!$I25,'Project Plan'!M$3)) -> 2019-12-02 | N25: =IF(K25=0,"",OFFSET('Data Sheet'!$C$1,'Project Plan'!$I25,'Project Plan'!O$3)) -> 2020-12-30 | O25: =IF(K25=0,"",OFFSET('Data Sheet'!$C$1,'Project Plan'!$I25,'Project Plan'!N$3)) -> 45 | P25: =IF(K25=0,"",OFFSET('Data Sheet'!$C$1,'Project Plan'!$I25,'Project Plan'!P$3)) -> 0.75 | Q25: =IF(K25=0,"",O25*P25) -> 33.75 | R25: =OFFSET('Data Sheet'!$C$1,'Project Plan'!$I25,'Project Plan'!R$3) -> Coaching
I26: 160 | J26: =IF(K26=0,"",INDEX(Table1[],I26,2)) -> 7 | K26: =REPT(" ",(LEN(INDEX(Table1[],I26,2))-LEN(SUBSTITUTE(INDEX(Table1[],I26,2),".",""))))&OFFSET('Data Sheet'!$C$1,'Project Plan'!$I26,'Project Plan'!K$3) -> Unit Testing | L26: =IF(K26=0,"",OFFSET('Data Sheet'!$C$1,'Project Plan'!$I26,'Project Plan'!L$3)) -> New Person + Kalaivani | M26: =IF(K26=0,"",OFFSET('Data Sheet'!$C$1,'Project Plan'!$I26,'Project Plan'!M$3)) -> 2020-02-10 | N26: =IF(K26=0,"",OFFSET('Data Sheet'!$C$1,'Project Plan'!$I26,'Project Plan'!O$3)) -> 2020-12-30 | O26: =IF(K26=0,"",OFFSET('Data Sheet'!$C$1,'Project Plan'!$I26,'Project Plan'!N$3)) -> 5 | P26: =IF(K26=0,"",OFFSET('Data Sheet'!$C$1,'Project Plan'!$I26,'Project Plan'!P$3)) -> 0 | Q26: =IF(K26=0,"",O26*P26) -> 0 | R26: =OFFSET('Data Sheet'!$C$1,'Project Plan'!$I26,'Project Plan'!R$3) -> Coaching
I27: 161 | J27: =IF(K27=0,"",INDEX(Table1[],I27,2)) -> 8 | K27: =REPT(" ",(LEN(INDEX(Table1[],I27,2))-LEN(SUBSTITUTE(INDEX(Table1[],I27,2),".",""))))&OFFSET('Data Sheet'!$C$1,'Project Plan'!$I27,'Project Plan'!K$3) -> System Testing | L27: =IF(K27=0,"",OFFSET('Data Sheet'!$C$1,'Project Plan'!$I27,'Project Plan'!L$3)) -> New Person + Kalaivani | M27: =IF(K27=0,"",OFFSET('Data Sheet'!$C$1,'Project Plan'!$I27,'Project Plan'!M$3)) -> 2020-02-17 | N27: =IF(K27=0,"",OFFSET('Data Sheet'!$C$1,'Project Plan'!$I27,'Project Plan'!O$3)) -> 2020-12-30 | O27: =IF(K27=0,"",OFFSET('Data Sheet'!$C$1,'Project Plan'!$I27,'Project Plan'!N$3)) -> 5 | P27: =IF(K27=0,"",OFFSET('Data Sheet'!$C$1,'Project Plan'!$I27,'Project Plan'!P$3)) -> 0 | Q27: 0 | R27: =OFFSET('Data Sheet'!$C$1,'Project Plan'!$I27,'Project Plan'!R$3) -> Coaching
C28: Project Gantt. Template By: | E28: https://analysistabs.com | F28: PNRao | I28: 162 | J28: =IF(K28=0,"",INDEX(Table1[],I28,2)) -> 9 | K28: =REPT(" ",(LEN(INDEX(Table1[],I28,2))-LEN(SUBSTITUTE(INDEX(Table1[],I28,2),".",""))))&OFFSET('Data Sheet'!$C$1,'Project Plan'!$I28,'Project Plan'!K$3) -> UAT | L28: =IF(K28=0,"",OFFSET('Data Sheet'!$C$1,'Project Plan'!$I28,'Project Plan'!L$3)) -> Business | M28: =IF(K28=0,"",OFFSET('Data Sheet'!$C$1,'Project Plan'!$I28,'Project Plan'!M$3)) -> 2020-02-24 | N28: =IF(K28=0,"",OFFSET('Data Sheet'!$C$1,'Project Plan'!$I28,'Project Plan'!O$3)) -> 2020-12-30 | O28: =IF(K28=0,"",OFFSET('Data Sheet'!$C$1,'Project Plan'!$I28,'Project Plan'!N$3)) -> 5 | P28: =IF(K28=0,"",OFFSET('Data Sheet'!$C$1,'Project Plan'!$I28,'Project Plan'!P$3)) -> 0 | Q28: 0 | R28: =OFFSET('Data Sheet'!$C$1,'Project Plan'!$I28,'Project Plan'!R$3) -> Coaching
C29: Please let us know your feedback | Email: info@analysistabs.com

Sheet Projects Summary
B2: Projects | C2: Tasks | D2: Start | E2: End | F2: Days | G2: %Progress | H2: Remaining | I2: Client | J2: PM
B3: All Projects | C3: =COUNTA(Table1[Project]) -> 246 | D3: =MIN(Table1[Start Date]) -> 2019-11-25 | E3: =MAX(Table1[Start Date])+MAX(Table1[Days Req.]) -> 2020-11-30 | F3: =SUM(Table1[Days Req.]) -> 1402.5 | G3: =IFERROR(Table1[[#This Row],[Days Complete]]/Table1[[#This Row],[Days Req.]],0) -> 0.1 | H3: =IFERROR(1-G3,"") -> 0.9 | I3: HRD | J3: Mak
B4: PJ04757-PR Tool | C4: =COUNTIF(Table1[Project],B4) -> 36 | D4: =MIN(IF(Table1[Project]=B4,Table1[Start Date])) -> 2019-12-01 | E4: =MAX(IF(Table1[Project]=B4,Table1[End Date])) -> 2020-06-15 | F4: =SUMIF(Table1[Project],'Projects Summary'!B4,Table1[Days Req.]) -> 204 | G4: =IFERROR(SUMIF(Table1[Project],'Projects Summary'!B4,Table1[Days Complete])/F4,0) -> 0.07156862745 | H4: =IFERROR(1-G4,"") -> 0.9284313725 | I4: HRDPL - Planning and Performance | J4: Cathy
B5: PJ04750 Talent Review Tool | C5: =COUNTIF(Table1[Project],B5) -> 87 | D5: =MIN(IF(Table1[Project]=B5,Table1[Start Date])) -> 2019-12-12 | E5: =MAX(IF(Table1[Project]=B5,Table1[End Date])) -> 2020-03-30 | F5: =SUMIF(Table1[Project],'Projects Summary'!B5,Table1[Days Req.]) -> 302.5 | G5: =IFERROR(SUMIF(Table1[Project],'Projects Summary'!B5,Table1[Days Complete])/F5,0) -> 0.07090909091 | H5: =IFERROR(1-G5,"") -> 0.9290909091 | I5: HRDCM - Careers and Mobility | J5: Cathy
B6: Mobility Preference | C6: =COUNTIF(Table1[Project],B6) -> 17 | D6: =MIN(IF(Table1[Project]=B6,Table1[Start Date])) -> 2020-01-02 | E6: =MAX(IF(Table1[Project]=B6,Table1[End Date])) -> 2020-12-30 | F6: =SUMIF(Table1[Project],'Projects Summary'!B6,Table1[Days Req.]) -> 174 | G6: =IFERROR(SUMIF(Table1[Project],'Projects Summary'!B6,Table1[Days Complete])/F6,0) -> 0.01724137931 | H6: 0.9827586207 | I6: HRDCM - Careers and Mobility | J6: Cathy
B7: Workforce Planning | C7: =COUNTIF(Table1[Project],B7) -> 14 | D7: =MIN(IF(Table1[Project]=B7,Table1[Start Date])) -> 2020-01-01 | E7: =MAX(IF(Table1[Project]=B7,Table1[End Date])) -> 2020-01-31 | F7: =SUMIF(Table1[Project],'Projects Summary'!B7,Table1[Days Req.]) -> 24 | G7: =IFERROR(SUMIF(Table1[Project],'Projects Summary'!B7,Table1[Days Complete])/F7,0) -> 0.3291666667 | H7: 0.6708333333 | I7: HRDPL - Planning and Performance | J7: Julie
B8: Onboarding | C8: =COUNTIF(Table1[Project],B8) -> 1 | D8: =MIN(IF(Table1[Project]=B8,Table1[Start Date])) -> 2020-01-01 | E8: =MAX(IF(Table1[Project]=B8,Table1[End Date])) -> 2020-03-30 | F8: =SUMIF(Table1[Project],'Projects Summary'!B8,Table1[Days Req.]) -> 90 | G8: =IFERROR(SUMIF(Table1[Project],'Projects Summary'!B8,Table1[Days Complete])/F8,0) -> 0 | H8: 1 | I8: Client Services | J8: Pamela
B9: Language Tracking | C9: =COUNTIF(Table1[Project],B9) -> 12 | D9: =MIN(IF(Table1[Project]=B9,Table1[Start Date])) -> 2020-01-31 | E9: =MAX(IF(Table1[Project]=B9,Table1[End Date])) -> 2020-12-30 | F9: =SUMIF(Table1[Project],'Projects Summary'!B9,Table1[Days Req.]) -> 112.5 | G9: =IFERROR(SUMIF(Table1[Project],'Projects Summary'!B9,Table1[Days Complete])/F9,0) -> 0 | H9: 1 | I9: HRDCL - Career, Performance and Learning | J9: Cathy
B10: Coaching | C10: =COUNTIF(Table1[Project],B10) -> 12 | D10: =MIN(IF(Table1[Project]=B10,Table1[Start Date])) -> 2019-11-25 | E10: =MAX(IF(Table1[Project]=B10,Table1[End Date])) -> 2020-12-30 | F10: =SUMIF(Table1[Project],'Projects Summary'!B10,Table1[Days Req.]) -> 102.5 | G10: =IFERROR(SUMIF(Table1[Project],'Projects Summary'!B10,Table1[Days Complete])/F10,0) -> 0.5975609756 | H10: 0.4024390244 | I10: HRDCL - Career, Performance and Learning | J10: Cathy
B11: HireVue | C11: =COUNTIF(Table1[Project],B11) -> 48 | D11: =MIN(IF(Table1[Project]=B11,Table1[Start Date])) -> 2020-01-15 | E11: =MAX(IF(Table1[Project]=B11,Table1[End Date])) -> 2020-03-31 | F11: =SUMIF(Table1[Project],'Projects Summary'!B11,Table1[Days Req.]) -> 119 | G11: =IFERROR(SUMIF(Table1[Project],'Projects Summary'!B11,Table1[Days Complete])/F11,0) -> 0 | H11: 1 | I11: Client Services | J11: Pamela
B12: ePerformance | C12: =COUNTIF(Table1[Project],B12) -> 19 | D12: =MIN(IF(Table1[Project]=B12,Table1[Start Date])) -> 2019-12-15 | E12: =MAX(IF(Table1[Project]=B12,Table1[End Date])) -> 2020-12-30 | F12: =SUMIF(Table1[Project],'Projects Summary'!B12,Table1[Days Req.]) -> 264 | G12: =IFERROR(SUMIF(Table1[Project],'Projects Summary'!B12,Table1[Days Complete])/F12,0) -> 0.3356060606 | H12: 0.6643939394 | I12: HRDPL - Planning and Performance | J12: Julie
C13: =COUNTIF(Table1[Project],B13) -> 0 | D13: =MIN(IF(Table1[Project]=B13,Table1[Start Date])) -> 2020-01-08 | E13: =MAX(IF(Table1[Project]=B13,Table1[End Date])) -> 2020-01-31 | F13: =SUMIF(Table1[Project],'Projects Summary'!B13,Table1[Days Req.]) -> 0 | G13: =IFERROR(SUMIF(Table1[Project],'Projects Summary'!B13,Table1[Days Complete])/F13,0) -> 0 | H13: 1
C14: =COUNTIF(Table1[Project],B14) -> 0 | D14: =MIN(IF(Table1[Project]=B14,Table1[Start Date])) -> 2020-01-08 | E14: =MAX(IF(Table1[Project]=B14,Table1[End Date])) -> 2020-01-31 | F14: =SUMIF(Table1[Project],'Projects Summary'!B14,Table1[Days Req.]) -> 0 | G14: =IFERROR(SUMIF(Table1[Project],'Projects Summary'!B14,Table1[Days Complete])/F14,0) -> 0 | H14: 1

Sheet Data Sheet
A1: Project | B1: WBS | C1: Task | D1: Responsible | E1: Start Date | F1: End Date | G1: Days Req. | H1: Progress | I1: Days Complete
A2: PJ04757-PR Tool | B2: 1 | C2: Technicial Design Document | D2: Hari | E2: 2019-12-12 | F2: 2020-02-28 | G2: 5 | H2: 0.02 | I2: =Table1[[#This Row],[Days Req.]]*Table1[[#This Row],[Progress]] -> 0.1
A3: PJ04757-PR Tool | B3: 2 | C3: Unit Test Case | D3: Hari/Cindy/Cathy/Frances | E3: 2019-12-12 | F3: 2020-02-28 | G3: 8 | H3: 0.1 | I3: =Table1[[#This Row],[Days Req.]]*Table1[[#This Row],[Progress]] -> 0.8
A4: PJ04757-PR Tool | B4: 3 | C4: Data Mapping Roster | D4: Hari/Cindy/Frances | E4: 2019-12-01 | F4: 2020-01-17 | G4: 10 | H4: 0.75 | I4: =Table1[[#This Row],[Days Req.]]*Table1[[#This Row],[Progress]] -> 7.5
A5: PJ04757-PR Tool | B5: 4 | C5: Master Screen | D5: Hari/Cindy/Frances | E5: 2020-01-21 | F5: 2020-02-04
A6: PJ04757-PR Tool | B6: 4.1 | C6: Master Screen: Define Annual PR Cycle | D6: Hari | E6: 2020-01-21 | F6: 2020-02-04 | G6: 7 | H6: 0.6 | I6: =Table1[[#This Row],[Days Req.]]*Table1[[#This Row],[Progress]] -> 4.2
A7: PJ04757-PR Tool | B7: 4.2 | C7: Master Screen: Criteria/Sorting Options Screen | D7: Hari | E7: 2020-01-21 | F7: 2020-02-04 | G7: 8 | H7: 0 | I7: =Table1[[#This Row],[Days Req.]]*Table1[[#This Row],[Progress]] -> 0
A8: PJ04757-PR Tool | B8: 4.3 | C8: Master Screen: Add More Field - Screen | D8: Hari | E8: 2020-01-21 | F8: 2020-02-04 | G8: 8 | H8: 0.25 | I8: =Table1[[#This Row],[Days Req.]]*Table1[[#This Row],[Progress]] -> 2
A9: PJ04757-PR Tool | B9: 5 | C9: Transaction | D9: Hari | E9: 2020-02-04 | F9: 2020-02-28
A10: PJ04757-PR Tool | B10: 5.1 | C10: Transaction:.Data Entry screen | E10: 2020-02-04 | F10: 2020-02-18 | G10: 10 | I10: =Table1[[#This Row],[Days Req.]]*Table1[[#This Row],[Progress]] -> 0
A11: PJ04757-PR Tool | B11: 5.2 | C11: Transaction:.Data Refresh/Resynch | D11: Hari | E11: 2020-02-04 | F11: 2020-02-18 | G11: 5 | H11: 0 | I11: =Table1[[#This Row],[Days Req.]]*Table1[[#This Row],[Progress]] -> 0
A12: PJ04757-PR Tool | B12: 5.2.1 | C12: Transaction:.PR Cycle population inclusion / exclusion | D12: Hari | E12: 2020-02-04 | F12: 2020-02-18 | G12: 5 | H12: 0 | I12: =Table1[[#This Row],[Days Req.]]*Table1[[#This Row],[Progress]] -> 0
A13: PJ04757-PR Tool | B13: 5.2.2 | C13: Transaction:.Security setup (Read only/editable fields) we will be using PS Security Rowsecclass) | D13: Hari | E13: 2020-02-04 | F13: 2020-02-17 | G13: 5 | H13: 0 | I13: =Table1[[#This Row],[Days Req.]]*Table1[[#This Row],[Progress]] -> 0
A14: PJ04757-PR Tool | B14: 5.3 | C14: Transaction:.Automatic assignment of exclusion codes | D14: Hari | E14: 2020-02-17 | F14: 2020-02-28 | G14: 5 | H14: 0 | I14: =Table1[[#This Row],[Days Req.]]*Table1[[#This Row],[Progress]] -> 0
A15: PJ04757-PR Tool | B15: 5.4 | C15: Transaction:.Prompts for Final PR | D15: Hari | E15: 2020-02-17 | F15: 2020-02-28 | G15: 5 | H15: 0 | I15: =Table1[[#This Row],[Days Req.]]*Table1[[#This Row],[Progress]] -> 0
A16: PJ04757-PR Tool | B16: 5.5 | C16: Transaction:.Audit trail functionality for any changes made | D16: Hari | E16: 2020-02-17 | F16: 2020-02-28 | G16: 5 | H16: 0 | I16: =Table1[[#This Row],[Days Req.]]*Table1[[#This Row],[Progress]] -> 0
A17: PJ04757-PR Tool | B17: 5.6 | C17: Transaction:.User Roles Set-up | D17: Sec Admin/Hari/Frances | E17: 2020-02-10 | F17: 2020-02-28 | G17: 5 | H17: 0 | I17: =Table1[[#This Row],[Days Req.]]*Table1[[#This Row],[Progress]] -> 0
A18: PJ04757-PR Tool | B18: 6 | C18: Reports | D18: Sujana/Contractor 1 | E18: 2020-02-10 | F18: 2020-03-07
A19: PJ04757-PR Tool | B19: 6.1 | C19: Reports: Pre-defined PR curve Report (should include different filters) | D19: Sujana/Contractor 1 | E19: 2020-02-10 | F19: 2020-02-24 | G19: 15 | H19: 0 | I19: =Table1[[#This Row],[Days Req.]]*Table1[[#This Row],[Progress]] -> 0
A20: PJ04757-PR Tool | B20: 6.2 | C20: Reports: Data Export (Excel, PDF if possible) | D20: Sujana/Contractor 1 | E20: 2020-02-10 | F20: 2020-02-24 | G20: 5 | H20: 0 | I20: =Table1[[#This Row],[Days Req.]]*Table1[[#This Row],[Progress]] -> 0
A21: PJ04757-PR Tool | B21: 6.3 | C21: Reports: Summary Report for WBG | D21: Sujana/Contractor 1 | E21: 2020-02-27 | F21: 2020-03-07 | G21: 5 | H21: 0 | I21: =Table1[[#This Row],[Days Req.]]*Table1[[#This Row],[Progress]] -> 0
A22: PJ04757-PR Tool | B22: 6.4 | C22: Reports: Status Report - completion of PR per VPU etc. | D22: Sujana/Contractor 1 | E22: 2020-02-27 | F22: 2020-03-07 | G22: 5 | H22: 0 | I22: =Table1[[#This Row],[Days Req.]]*Table1[[#This Row],[Progress]] -> 0
A23: PJ04757-PR Tool | B23: 7 | C23: Interface | D23: Cindy/Hari | E23: 2020-01-08 | F23: 2020-02-28
C24: Interface: PeopleSoft to PR Tool (Population) | D24: Cindy/Hari | E24: 2020-01-08 | F24: 2020-01-31 | G24: 10 | H24: 0.2 | I24: =Table1[[#This Row],[Days Req.]]*Table1[[#This Row],[Progress]] -> 2
A25: PJ04757-PR Tool | B25: 7.1 | C25: Interface: eTalent to PR Tool (Prelim PR ,Talent Indicator, Promotion Readiness) | D25: Cindy/Hari/Sujana | E25: 2020-02-17 | F25: 2020-02-28 | G25: 10 | H25: 0 | I25: =Table1[[#This Row],[Days Req.]]*Table1[[#This Row],[Progress]] -> 0
A26: PJ04757-PR Tool | B26: 7.2 | C26: Interface: To API- modify existing program | D26: Cindy/Hari | E26: 2020-02-03 | F26: 2020-02-14 | G26: 5 | H26: 0 | I26: =Table1[[#This Row],[Days Req.]]*Table1[[#This Row],[Progress]] -> 0
A27: PJ04757-PR Tool | B27: 7.2.1 | C27: Interface: Tool to e-Talent ( Final Rating) | D27: Cindy/Hari | E27: 2020-02-17 | F27: 2020-02-28 | G27: 5 | H27: 0 | I27: =Table1[[#This Row],[Days Req.]]*Table1[[#This Row],[Progress]] -> 0
A28: PJ04757-PR Tool | B28: 8 | C28: User Acceptance Testing | E28: 2020-03-09 | F28: 2020-06-03
A29: PJ04757-PR Tool | B29: 8.1 | C29: Indentify Test Cases | D29: PM Team | E29: 2020-03-09 | F29: 2020-03-13 | G29: 4 | H29: 0 | I29: =Table1[[#This Row],[Days Req.]]*Table1[[#This Row],[Progress]] -> 0
A30: PJ04757-PR Tool | B30: 8.2 | C30: Identify Testers | D30: PM Team | E30: 2020-03-16 | F30: 2020-03-20 | G30: 5 | H30: 0 | I30: =Table1[[#This Row],[Days Req.]]*Table1[[#This Row],[Progress]] -> 0
A31: PJ04757-PR Tool | B31: 8.3 | C31: Produce Test Case Documents | D31: PM Team | E31: 2020-03-23 | F31: 2020-03-27 | G31: 5 | H31: 0 | I31: =Table1[[#This Row],[Days Req.]]*Table1[[#This Row],[Progress]] -> 0
A32: PJ04757-PR Tool | B32: 8.4 | C32: Approval of UAT Test Cases | D32: PM Team | E32: 2020-03-30 | F32: 2020-03-30 | G32: 1 | H32: 0 | I32: =Table1[[#This Row],[Days Req.]]*Table1[[#This Row],[Progress]] -> 0
A33: PJ04757-PR Tool | B33: 8.5 | C33: User Guide Creation | D33: PM Team | E33: 2020-03-30 | F33: 2020-04-03 | G33: 5 | H33: 0 | I33: =Table1[[#This Row],[Days Req.]]*Table1[[#This Row],[Progress]] -> 0
A34: PJ04757-PR Tool | B34: 8.6 | C34: Approval of User Guide | D34: PM Team | E34: 2020-04-06 | F34: 2020-04-06 | G34: 1 | H34: 0 | I34: =Table1[[#This Row],[Days Req.]]*Table1[[#This Row],[Progress]] -> 0
A35: PJ04757-PR Tool | B35: 8.7 | C35: User Brown Bag Session | D35: PM Team | E35: 2020-04-06 | F35: 2020-04-10 | G35: 5 | H35: 0 | I35: =Table1[[#This Row],[Days Req.]]*Table1[[#This Row],[Progress]] -> 0
A36: PJ04757-PR Tool | B36: 8.8 | C36: Perform Test Cases | D36: PM Team | E36: 2020-04-13 | F36: 2020-05-29 | G36: 35 | H36: 0 | I36: =Table1[[#This Row],[Days Req.]]*Table1[[#This Row],[Progress]] -> 0
A37: PJ04757-PR Tool | B37: 8.9 | C37: UAT Sign Off/ Go or No Go | D37: PM Team | E37: 2020-01-05 | F37: 2020-01-05 | G37: 1 | H37: 0 | I37: =Table1[[#This Row],[Days Req.]]*Table1[[#This Row],[Progress]] -> 0
A38: PJ04757-PR Tool | B38: 9 | C38: System Go-Live | D38: ITS | E38: 2020-06-15 | F38: 2020-06-15 | G38: 1 | H38: 0 | I38: =Table1[[#This Row],[Days Req.]]*Table1[[#This Row],[Progress]] -> 0
A39: PJ04750 Talent Review Tool | B39: 1 | C39: Contract | E39: 2019-12-12 | F39: 2020-01-13
A40: PJ04750 Talent Review Tool | B40: 1.1 | C40: Review Cycle | D40: Celena | E40: 2019-12-12 | F40: 2020-01-10 | G40: 9 | H40: 0.8 | I40: =Table1[[#This Row],[Days Req.]]*Table1[[#This Row],[Progress]] -> 7.2
A41: PJ04750 Talent Review Tool | B41: 1.2 | C41: Approval | D41: ITSPS/Pilat | E41: 2020-01-13 | F41: 2020-01-13 | G41: 0 | H41: 0 | I41: =Table1[[#This Row],[Days Req.]]*Table1[[#This Row],[Progress]] -> 0
A42: PJ04750 Talent Review Tool | B42: 2 | C42: Functional Specification | E42: 2020-01-03 | F42: 2020-02-05
A43: PJ04750 Talent Review Tool | B43: 2.1 | C43: MSS review | D43: HRDCM | E43: 2020-01-03 | F43: 2020-01-03 | G43: 12 | H43: 0.75 | I43: =Table1[[#This Row],[Days Req.]]*Table1[[#This Row],[Progress]] -> 9
A44: PJ04750 Talent Review Tool | B44: 2.2 | C44: MSS approved | D44: HRDCM | E44: 2020-01-03 | F44: 2020-01-03 | G44: 0 | H44: 0 | I44: =Table1[[#This Row],[Days Req.]]*Table1[[#This Row],[Progress]] -> 0
A45: PJ04750 Talent Review Tool | B45: 2.3 | C45: Data import review | D45: HRDCM | E45: 2020-01-10 | F45: 2020-01-10 | G45: 5 | H45: 0.1 | I45: =Table1[[#This Row],[Days Req.]]*Table1[[#This Row],[Progress]] -> 0.5
A46: PJ04750 Talent Review Tool | B46: 2.4 | C46: Data import approved | D46: HRDCM | E46: 2020-01-10 | F46: 2020-01-10 | G46: 0 | H46: 0 | I46: =Table1[[#This Row],[Days Req.]]*Table1[[#This Row],[Progress]] -> 0
A47: PJ04750 Talent Review Tool | B47: 2.5 | C47: Talent Meeting review | D47: HRDCM | E47: 2020-01-10 | F47: 2020-01-10 | G47: 5 | H47: 0.1 | I47: =Table1[[#This Row],[Days Req.]]*Table1[[#This Row],[Progress]] -> 0.5
A48: PJ04750 Talent Review Tool | B48: 2.6 | C48: Talent Meeting approved | D48: HRDCM | E48: 2020-01-10 | F48: 2020-01-10 | G48: 0 | H48: 0 | I48: =Table1[[#This Row],[Days Req.]]*Table1[[#This Row],[Progress]] -> 0
A49: PJ04750 Talent Review Tool | B49: 2.7 | C49: Talent Pool review | D49: HRDCM | E49: 2020-01-17 | F49: 2020-01-17 | G49: 5 | H49: 0 | I49: =Table1[[#This Row],[Days Req.]]*Table1[[#This Row],[Progress]] -> 0
A50: PJ04750 Talent Review Tool | B50: 2.8 | C50: Talent Pool approved | D50: HRDCM | E50: 2020-01-27 | F50: 2020-01-27 | G50: 0 | H50: 0 | I50: =Table1[[#This Row],[Days Req.]]*Table1[[#This Row],[Progress]] -> 0
A51: PJ04750 Talent Review Tool | B51: 2.9 | C51: Reporting/ Analytics review | D51: HRDCM | E51: 2020-01-17 | F51: 2020-01-17 | G51: 5 | H51: 0.05 | I51: =Table1[[#This Row],[Days Req.]]*Table1[[#This Row],[Progress]] -> 0.25
A52: PJ04750 Talent Review Tool | B52: 2.10 | C52: Analytics approved | D52: HRDCM | E52: 2020-01-28 | F52: 2020-01-28 | G52: 1 | H52: 0 | I52: =Table1[[#This Row],[Days Req.]]*Table1[[#This Row],[Progress]] -> 0
A53: PJ04750 Talent Review Tool | B53: 2.11 | C53: Admin phase 1 review | D53: HRDCM | E53: 2020-01-29 | F53: 2020-01-29 | G53: 5 | H53: 0 | I53: =Table1[[#This Row],[Days Req.]]*Table1[[#This Row],[Progress]] -> 0
A54: PJ04750 Talent Review Tool | B54: 2.12 | C54: Admin approved | D54: HRDCM | E54: 2020-02-05 | F54: 2020-02-05 | G54: 0 | H54: 0 | I54: =Table1[[#This Row],[Days Req.]]*Table1[[#This Row],[Progress]] -> 0
A55: PJ04750 Talent Review Tool | B55: 3 | C55: Phase 1 Configuration | E55: 2019-12-30 | F55: 2020-01-30
A56: PJ04750 Talent Review Tool | B56: 3.1 | C56: Set up Pulse 10 base | D56: Pilat | E56: 2019-12-30 | F56: 2020-01-14 | G56: 10 | H56: 0.1 | I56: =Table1[[#This Row],[Days Req.]]*Table1[[#This Row],[Progress]] -> 1
A57: PJ04750 Talent Review Tool | B57: 3.2 | C57: Set up test site | D57: Pilat | E57: 2020-01-15 | F57: 2020-01-16 | G57: 2 | H57: 0 | I57: =Table1[[#This Row],[Days Req.]]*Table1[[#This Row],[Progress]] -> 0
A58: PJ04750 Talent Review Tool | B58: 3.3 | C58: Set up production | D58: Pilat | E58: 2020-01-17 | F58: 2020-01-21 | G58: 2 | H58: 0 | I58: =Table1[[#This Row],[Days Req.]]*Table1[[#This Row],[Progress]] -> 0
A59: PJ04750 Talent Review Tool | B59: 3.3.1 | C59: Single Sign-On | E59: 2020-01-13 | F59: 2020-01-28
A60: PJ04750 Talent Review Tool | B60: 3.3.1.1 | C60: SSO configuration engagement with ICAM team | D60: Srikanth (ITS ICAM Team) | E60: 2020-01-13 | F60: 2020-01-15 | G60: 1 | H60: 0 | I60: =Table1[[#This Row],[Days Req.]]*Table1[[#This Row],[Progress]] -> 0
A61: PJ04750 Talent Review Tool | B61: 3.3.1.2 | C61: SSO credential agreement | D61: Pilat / ITSPS | E61: 2020-01-15 | F61: 2020-01-22 | G61: 5 | H61: 0 | I61: =Table1[[#This Row],[Days Req.]]*Table1[[#This Row],[Progress]] -> 0
A62: PJ04750 Talent Review Tool | B62: 3.3.1.3 | C62: SSO setup | D62: Pilat / ITSPS | E62: 2020-01-23 | F62: 2020-01-27 | G62: 3 | H62: 0 | I62: =Table1[[#This Row],[Days Req.]]*Table1[[#This Row],[Progress]] -> 0
A63: PJ04750 Talent Review Tool | B63: 3.3.1.4 | C63: SSO test | D63: Pilat / ITSPS | E63: 2020-01-28 | F63: 2020-01-28 | G63: 1 | H63: 0 | I63: =Table1[[#This Row],[Days Req.]]*Table1[[#This Row],[Progress]] -> 0
A64: PJ04750 Talent Review Tool | B64: 3.3.1.5 | C64: SSO complete | D64: Pilat / ITSPS | E64: 2020-01-28 | F64: 2020-01-28 | G64: 0 | H64: 0 | I64: =Table1[[#This Row],[Days Req.]]*Table1[[#This Row],[Progress]] -> 0
A65: PJ04750 Talent Review Tool | B65: 3.4 | C65: Import | D65: Pilat / ITSPS | E65: 2020-01-13 | F65: 2020-02-10
A66: PJ04750 Talent Review Tool | B66: 3.4.1 | C66: Oracle export build | D66: ITSPS | E66: 2020-01-13 | F66: 2020-01-27 | G66: 4 | H66: 0 | I66: =Table1[[#This Row],[Days Req.]]*Table1[[#This Row],[Progress]] -> 0
A67: PJ04750 Talent Review Tool | B67: 3.4.2 | C67: Oracle export build | D67: ITSPS | E67: 2020-01-13 | F67: 2020-01-27 | G67: 4 | H67: 0 | I67: =Table1[[#This Row],[Days Req.]]*Table1[[#This Row],[Progress]] -> 0
A68: PJ04750 Talent Review Tool | B68: 3.4.3 | C68: Pulse 10 WBG import | D68: ITSPS | E68: 2020-01-13 | F68: 2020-01-27 | G68: 4 | H68: 0 | I68: =Table1[[#This Row],[Days Req.]]*Table1[[#This Row],[Progress]] -> 0
A69: PJ04750 Talent Review Tool | B69: 3.4.4 | C69: Pulse 10 IFC import | D69: ITSPS | E69: 2020-01-13 | F69: 2020-01-27 | G69: 4 | H69: 0 | I69: =Table1[[#This Row],[Days Req.]]*Table1[[#This Row],[Progress]] -> 0
A70: PJ04750 Talent Review Tool | B70: 3.4.5 | C70: Exchange agreement | D70: ITSPS/Pilat | E70: 2020-01-13 | F70: 2020-01-17 | G70: 1 | H70: 0 | I70: =Table1[[#This Row],[Days Req.]]*Table1[[#This Row],[Progress]] -> 0
A71: PJ04750 Talent Review Tool | B71: 3.4.6 | C71: Provide keys | D71: ITSPS/Pilat | E71: 2020-01-13 | F71: 2020-01-17 | G71: 1 | H71: 0 | I71: =Table1[[#This Row],[Days Req.]]*Table1[[#This Row],[Progress]] -> 0
A72: PJ04750 Talent Review Tool | B72: 3.4.7 | C72: Test Import | D72: ITSPS | E72: 2020-01-28 | F72: 2020-02-10 | G72: 1 | H72: 0 | I72: =Table1[[#This Row],[Days Req.]]*Table1[[#This Row],[Progress]] -> 0
A73: PJ04750 Talent Review Tool | B73: 3.4.8 | C73: Mobility Preferences Integration | D73: Pilat/ITSPS | E73: 2020-01-28 | F73: 2020-02-10 | G73: 1 | H73: 0 | I73: =Table1[[#This Row],[Days Req.]]*Table1[[#This Row],[Progress]] -> 0
A74: PJ04750 Talent Review Tool | B74: 3.4.9 | C74: Import Completed | D74: HRDCM | E74: 2020-02-10 | F74: 2020-02-10 | G74: 0 | H74: 0 | I74: =Table1[[#This Row],[Days Req.]]*Table1[[#This Row],[Progress]] -> 0
A75: PJ04750 Talent Review Tool | B75: 3.5 | C75: Pen Test Planning with WBG OIS | D75: ITSPS/Pilat | E75: 2020-01-28 | F75: 2020-01-30 | G75: 2 | H75: 0 | I75: =Table1[[#This Row],[Days Req.]]*Table1[[#This Row],[Progress]] -> 0
A76: PJ04750 Talent Review Tool | B76: 3.6 | C76: Configuration and Build | D76: Pilat / ITSPS/HRDCM | E76: 2020-01-15 | F76: 2020-03-05
A77: PJ04750 Talent Review Tool | B77: 3.6.1 | C77: MSS | D77: Pilat / HRDCM / ITSPS | E77: 2020-01-15 | F77: 2020-03-05 | G77: 19 | H77: 0 | I77: =Table1[[#This Row],[Days Req.]]*Table1[[#This Row],[Progress]] -> 0
A78: PJ04750 Talent Review Tool | B78: 3.6.2 | C78: Capture Preliminary Performance Ratings and Calibration feature | D78: Pilat | E78: 2020-01-15 | F78: 2020-03-05 | G78: 5 | H78: 0 | I78: =Table1[[#This Row],[Days Req.]]*Table1[[#This Row],[Progress]] -> 0
A79: PJ04750 Talent Review Tool | B79: 3.6.3 | C79: Configure | D79: Pilat / HRDCM / ITSPS | E79: 2020-01-15 | F79: 2020-03-05 | G79: 10 | H79: 0.3 | I79: =Table1[[#This Row],[Days Req.]]*Table1[[#This Row],[Progress]] -> 3
A80: PJ04750 Talent Review Tool | B80: 3.6.4 | C80: Internal test | D80: Pilat / HRDCM / ITSPS | E80: 2020-01-15 | F80: 2020-03-05 | G80: 4 | H80: 0 | I80: =Table1[[#This Row],[Days Req.]]*Table1[[#This Row],[Progress]] -> 0
A81: PJ04750 Talent Review Tool | B81: 3.6.5 | C81: MSS completed | D81: Pilat / HRDCM / ITSPS | E81: 2020-03-05 | F81: 2020-03-05 | G81: 0 | H81: 0 | I81: =Table1[[#This Row],[Days Req.]]*Table1[[#This Row],[Progress]] -> 0
A82: PJ04750 Talent Review Tool | B82: 3.7 | C82: User Security Roles (Testing) – Access control | D82: Pilat / HRDCM / ITSPS | E82: 2020-01-15 | F82: 2020-03-05 | G82: 35 | H82: 0 | I82: 0
A83: PJ04750 Talent Review Tool | B83: 3.7 | C83: Talent Mtg Build | D83: Pilat / HRDCM / ITSPS | E83: 2020-01-15 | F83: 2020-03-05 | G83: 0 | H83: 0 | I83: =Table1[[#This Row],[Days Req.]]*Table1[[#This Row],[Progress]] -> 0
A84: PJ04750 Talent Review Tool | B84: 3.7.1 | C84: Configure | D84: Pilat / HRDCM / ITSPS | E84: 2020-01-15 | F84: 2020-03-05 | G84: 19 | H84: 0 | I84: =Table1[[#This Row],[Days Req.]]*Table1[[#This Row],[Progress]] -> 0
A85: PJ04750 Talent Review Tool | B85: 3.7.2 | C85: Internal test | D85: Pilat / HRDCM / ITSPS | E85: 2020-01-15 | F85: 2020-03-05 | G85: 5 | H85: 0 | I85: =Table1[[#This Row],[Days Req.]]*Table1[[#This Row],[Progress]] -> 0
A86: PJ04750 Talent Review Tool | B86: 3.7.3 | C86: Talent Mtg completed | D86: Pilat / HRDCM / ITSPS | E86: 2020-03-05 | F86: 2020-03-05 | G86: 0 | H86: 0 | I86: =Table1[[#This Row],[Days Req.]]*Table1[[#This Row],[Progress]] -> 0
A87: PJ04750 Talent Review Tool | B87: 3.8 | C87: Talent Pools | D87: Pilat / HRDCM / ITSPS | E87: 2020-01-15 | F87: 2020-03-05 | G87: 0 | H87: 0 | I87: =Table1[[#This Row],[Days Req.]]*Table1[[#This Row],[Progress]] -> 0
A88: PJ04750 Talent Review Tool | B88: 3.8.1 | C88: Configure | D88: Pilat / HRDCM / ITSPS | E88: 2020-01-15 | F88: 2020-03-05 | G88: 13 | H88: 0 | I88: =Table1[[#This Row],[Days Req.]]*Table1[[#This Row],[Progress]] -> 0
A89: PJ04750 Talent Review Tool | B89: 3.8.2 | C89: Internal test | D89: Pilat / HRDCM / ITSPS | E89: 2020-01-15 | F89: 2020-03-05 | G89: 5 | H89: 0 | I89: =Table1[[#This Row],[Days Req.]]*Table1[[#This Row],[Progress]] -> 0
A90: PJ04750 Talent Review Tool | B90: 3.8.3 | C90: Talent Mtg completed | D90: Pilat / HRDCM / ITSPS | E90: 2020-03-05 | F90: 2020-03-05 | G90: 0 | H90: 0 | I90: =Table1[[#This Row],[Days Req.]]*Table1[[#This Row],[Progress]] -> 0
A91: PJ04750 Talent Review Tool | B91: 3.9 | C91: Analytic & Reporting v1 | D91: Pilat / HRDCM / ITSPS | E91: 2020-02-13 | F91: 2020-03-05 | G91: 0 | H91: 0 | I91: =Table1[[#This Row],[Days Req.]]*Table1[[#This Row],[Progress]] -> 0
A92: PJ04750 Talent Review Tool | B92: 3.9.1 | C92: Configure | D92: Pilat / HRDCM / ITSPS | E92: 2020-02-13 | F92: 2020-03-05 | G92: 13 | H92: 0 | I92: =Table1[[#This Row],[Days Req.]]*Table1[[#This Row],[Progress]] -> 0
A93: PJ04750 Talent Review Tool | B93: 3.9.2 | C93: Internal test | D93: Pilat / HRDCM / ITSPS | E93: 2020-02-13 | F93: 2020-03-05 | G93: 5 | H93: 0 | I93: =Table1[[#This Row],[Days Req.]]*Table1[[#This Row],[Progress]] -> 0
A94: PJ04750 Talent Review Tool | B94: 3.9.3 | C94: Analytics completed | D94: Pilat / HRDCM / ITSPS | E94: 2020-03-05 | F94: 2020-03-05 | G94: 0 | H94: 0 | I94: =Table1[[#This Row],[Days Req.]]*Table1[[#This Row],[Progress]] -> 0
A95: PJ04750 Talent Review Tool | B95: 3.1 | C95: Admisistration v1 | D95: Pilat / HRDCM / ITSPS | E95: 2020-02-13 | F95: 2020-02-28 | G95: 0 | H95: 0 | I95: =Table1[[#This Row],[Days Req.]]*Table1[[#This Row],[Progress]] -> 0
A96: PJ04750 Talent Review Tool | B96: 3.10.1 | C96: Configure | D96: Pilat / HRDCM / ITSPS | E96: 2020-02-13 | F96: 2020-02-28 | G96: 12 | H96: 0 | I96: =Table1[[#This Row],[Days Req.]]*Table1[[#This Row],[Progress]] -> 0
A97: PJ04750 Talent Review Tool | B97: 3.10.2 | C97: Internal test | D97: Pilat / HRDCM / ITSPS | E97: 2020-02-13 | F97: 2020-02-28 | G97: 5 | H97: 0 | I97: =Table1[[#This Row],[Days Req.]]*Table1[[#This Row],[Progress]] -> 0
A98: PJ04750 Talent Review Tool | B98: 3.10.3 | C98: Admin v1 completed | D98: Pilat / HRDCM / ITSPS | E98: 2020-03-05 | F98: 2020-03-05 | G98: 0 | H98: 0 | I98: =Table1[[#This Row],[Days Req.]]*Table1[[#This Row],[Progress]] -> 0
A99: PJ04750 Talent Review Tool | B99: 3.11 | C99: Phase 1 Config completed | D99: Pilat / HRDCM / ITSPS | E99: 2020-03-05 | F99: 2020-03-05 | G99: 0 | H99: 0 | I99: =Table1[[#This Row],[Days Req.]]*Table1[[#This Row],[Progress]] -> 0
A100: PJ04750 Talent Review Tool | B100: 3.12 | C100: Questionsand Feedback | E100: 2020-01-15 | F100: 2020-03-05 | G100: 2 | H100: 0 | I100: =Table1[[#This Row],[Days Req.]]*Table1[[#This Row],[Progress]] -> 0
A101: PJ04750 Talent Review Tool | B101: 3.13 | C101: Walkthroughs | D101: HRDCM | E101: 2020-02-13 | F101: 2020-02-27 | G101: 3 | H101: 0 | I101: =Table1[[#This Row],[Days Req.]]*Table1[[#This Row],[Progress]] -> 0
A102: PJ04750 Talent Review Tool | B102: 3.13.1 | C102: Walkthrough 1 | D102: HRDCM | E102: 2020-02-13 | F102: 2020-02-12T12:00:00 | G102: 0.5 | H102: 0 | I102: =Table1[[#This Row],[Days Req.]]*Table1[[#This Row],[Progress]] -> 0
A103: PJ04750 Talent Review Tool | B103: 3.13.2 | C103: Walkthrough 2 | D103: HRDCM | E103: 2020-02-20 | F103: 2020-02-20 | G103: 1 | H103: 0 | I103: =Table1[[#This Row],[Days Req.]]*Table1[[#This Row],[Progress]] -> 0
A104: PJ04750 Talent Review Tool | B104: 3.13.3 | C104: Walkthrough 3 | D104: HRDCM | E104: 2020-02-27 | F104: 2020-02-27 | G104: 1 | H104: 0 | I104: =Table1[[#This Row],[Days Req.]]*Table1[[#This Row],[Progress]] -> 0
A105: PJ04750 Talent Review Tool | B105: 3.14 | C105: Pen Test | D105: PeddiRaju | E105: 2020-02-28 | F105: 2020-03-05 | G105: 5 | H105: 0 | I105: =Table1[[#This Row],[Days Req.]]*Table1[[#This Row],[Progress]] -> 0
A106: PJ04750 Talent Review Tool | B106: 3.15 | C106: User Acceptance Testing | D106: HRDCM | E106: 2020-03-06 | F106: 2020-03-23 | G106: 0 | H106: 0 | I106: =Table1[[#This Row],[Days Req.]]*Table1[[#This Row],[Progress]] -> 0
A107: PJ04750 Talent Review Tool | B107: 3.15.1 | C107: Cycle 1 | D107: HRDCM | E107: 2020-03-06 | F107: 2020-03-12 | G107: 5 | H107: 0 | I107: =Table1[[#This Row],[Days Req.]]*Table1[[#This Row],[Progress]] -> 0
A108: PJ04750 Talent Review Tool | B108: 3.15.2 | C108: Remediation | D108: Pilat | E108: 2020-03-13 | F108: 2020-03-13 | G108: 1 | H108: 0 | I108: =Table1[[#This Row],[Days Req.]]*Table1[[#This Row],[Progress]] -> 0
A109: PJ04750 Talent Review Tool | B109: 3.15.3 | C109: Cycle 2 | D109: HRDCM | E109: 2020-03-16 | F109: 2020-03-19 | G109: 4 | H109: 0 | I109: =Table1[[#This Row],[Days Req.]]*Table1[[#This Row],[Progress]] -> 0
A110: PJ04750 Talent Review Tool | B110: 3.15.4 | C110: Remediation | D110: Pilat | E110: 2020-03-20 | F110: 2020-03-23 | G110: 2 | H110: 0 | I110: =Table1[[#This Row],[Days Req.]]*Table1[[#This Row],[Progress]] -> 0
A111: PJ04750 Talent Review Tool | B111: 3.15.5 | C111: UAT completed | D111: HRDCM | E111: 2020-03-23 | F111: 2020-03-23 | G111: 0 | H111: 0 | I111: =Table1[[#This Row],[Days Req.]]*Table1[[#This Row],[Progress]] -> 0
A112: PJ04750 Talent Review Tool | B112: 4 | C112: Move to Production | E112: 2020-02-20 | F112: 2020-03-30 | I112: =Table1[[#This Row],[Days Req.]]*Table1[[#This Row],[Progress]] -> 0
A113: PJ04750 Talent Review Tool | B113: 4.1 | C113: [Pre-Deployment Phase | D113: HRDCM | E113: 2020-02-20 | F113: 2020-03-30 | G113: 13 | H113: 0 | I113: =Table1[[#This Row],[Days Req.]]*Table1[[#This Row],[Progress]] -> 0
A114: PJ04750 Talent Review Tool | B114: 4.1.1 | C114: Develop Communication Strategy | D114: HRDCM | E114: 2020-02-20 | F114: 2020-02-28 | G114: 7 | H114: 0 | I114: =Table1[[#This Row],[Days Req.]]*Table1[[#This Row],[Progress]] -> 0
A115: PJ04750 Talent Review Tool | B115: 4.1.2 | C115: KM documents | D115: Pilat | E115: 2020-03-26 | F115: 2020-03-30 | G115: 3 | H115: 0 | I115: =Table1[[#This Row],[Days Req.]]*Table1[[#This Row],[Progress]] -> 0
A116: PJ04750 Talent Review Tool | B116: 4.1.3 | C116: User Training Manual | D116: Pilat | E116: 2020-03-26 | F116: 2020-03-30 | G116: 3 | H116: 0 | I116: =Table1[[#This Row],[Days Req.]]*Table1[[#This Row],[Progress]] -> 0
A117: PJ04750 Talent Review Tool | B117: 4.2 | C117: Move Test to Production | D117: Pilat | E117: 2020-03-24 | F117: 2020-03-30 | G117: 1 | H117: 0 | I117: =Table1[[#This Row],[Days Req.]]*Table1[[#This Row],[Progress]] -> 0
A118: PJ04750 Talent Review Tool | B118: 4.3 | C118: Clear test data | D118: Pilat | E118: 2020-03-24 | F118: 2020-03-30 | G118: 1 | H118: 0 | I118: =Table1[[#This Row],[Days Req.]]*Table1[[#This Row],[Progress]] -> 0
A119: PJ04750 Talent Review Tool | B119: 4.4 | C119: Enable SSO | D119: Pilat | E119: 2020-03-25 | F119: 2020-03-25 | G119: 1 | H119: 0 | I119: =Table1[[#This Row],[Days Req.]]*Table1[[#This Row],[Progress]] -> 0
A120: PJ04750 Talent Review Tool | B120: 4.5 | C120: Enable import | D120: Pilat | E120: 2020-03-25 | F120: 2020-03-25 | G120: 1 | H120: 0 | I120: =Table1[[#This Row],[Days Req.]]*Table1[[#This Row],[Progress]] -> 0
A121: PJ04750 Talent Review Tool | B121: 4.6 | C121: Supply fresh data files | D121: ITSPS | E121: 2020-03-25 | F121: 2020-03-25 | G121: 1 | H121: 0 | I121: =Table1[[#This Row],[Days Req.]]*Table1[[#This Row],[Progress]] -> 0
A122: PJ04750 Talent Review Tool | B122: 4.7 | C122: Run import | D122: Pilat | E122: 2020-03-26 | F122: 2020-03-26 | G122: 1 | H122: 0 | I122: =Table1[[#This Row],[Days Req.]]*Table1[[#This Row],[Progress]] -> 0
A123: PJ04750 Talent Review Tool | B123: 4.8 | C123: System Test | D123: ITSPS/Pilat | E123: 2020-03-26 | F123: 2020-03-26 | G123: 1 | H123: 0 | I123: =Table1[[#This Row],[Days Req.]]*Table1[[#This Row],[Progress]] -> 0
A124: PJ04750 Talent Review Tool | B124: 4.9 | C124: User Test | D124: HRDCM | E124: 2020-03-26 | F124: 2020-03-26 | G124: 1 | H124: 0 | I124: =Table1[[#This Row],[Days Req.]]*Table1[[#This Row],[Progress]] -> 0
A125: PJ04750 Talent Review Tool | B125: 4.10 | C125: Open eTalent v10 | D125: HRDCM | E125: 2020-03-30 | F125: 2020-03-30 | G125: 1 | H125: 0 | I125: =Table1[[#This Row],[Days Req.]]*Table1[[#This Row],[Progress]] -> 0
A126: Mobility Preference | B126: 1 | C126: BRD Completion and Sign off | D126: HRDCM | E126: 2020-01-02 | F126: 2020-01-30 | G126: 20 | H126: 0.1 | I126: =Table1[[#This Row],[Days Req.]]*Table1[[#This Row],[Progress]] -> 2
A127: Mobility Preference | B127: 1.1 | C127: Finalize the questionnaire from WB and IFC | E127: 2020-01-02 | F127: 2020-01-30 | G127: 10 | H127: 0.1 | I127: =Table1[[#This Row],[Days Req.]]*Table1[[#This Row],[Progress]] -> 1
A128: Mobility Preference | B128: 1.2 | C128: BRD Sign Off | E128: 2020-01-30 | F128: 2020-01-30 | G128: 1 | H128: 0 | I128: =Table1[[#This Row],[Days Req.]]*Table1[[#This Row],[Progress]] -> 0
A129: Mobility Preference | B129: 2 | C129: Master Screen Creation | D129: ITSPS | E129: 2020-01-21 | F129: 2020-02-13 | I129: =Table1[[#This Row],[Days Req.]]*Table1[[#This Row],[Progress]] -> 0
A130: Mobility Preference | B130: 2.1 | C130: Master Screen: Capture Staff's Mobility Preferences | D130: ITSPS | E130: 2020-01-21 | F130: 2020-02-13 | G130: 17 | H130: 0 | I130: =Table1[[#This Row],[Days Req.]]*Table1[[#This Row],[Progress]] -> 0 | L130: 2020-01-21 | M130: 17 | N130: =WORKDAY(L130,M130) -> 2020-02-13
A131: Mobility Preference | B131: 3 | C131: Reports | D131: ITSPS | E131: 2020-02-03 | F131: 2020-12-30 | G131: 0 | H131: 0 | I131: =Table1[[#This Row],[Days Req.]]*Table1[[#This Row],[Progress]] -> 0 | L131: 2020-04-30 | M131: 10 | N131: =WORKDAY(L131,M131) -> 2020-05-14
A132: Mobility Preference | B132: 3.1 | C132: Excel Report Dump | D132: ITSPS | E132: 2020-02-03 | F132: 2020-02-06 | G132: 3 | H132: 0 | I132: =Table1[[#This Row],[Days Req.]]*Table1[[#This Row],[Progress]] -> 0 | L132: 2020-04-01 | M132: 10 | N132: 2020-04-15
A133: Mobility Preference | B133: 3.2 | C133: PDF Report Extract | D133: ITSPS | E133: 2020-02-06 | F133: 2020-02-11 | G133: 3 | H133: 0 | I133: =Table1[[#This Row],[Days Req.]]*Table1[[#This Row],[Progress]] -> 0
A134: Mobility Preference | B134: 4 | C134: Functional Unit/System Testing | D134: ITSPS | E134: 2020-02-11 | F134: 2020-02-17 | G134: 5 | H134: 0 | I134: =Table1[[#This Row],[Days Req.]]*Table1[[#This Row],[Progress]] -> 0
A135: Mobility Preference | B135: 5 | C135: User Acceptance Testing | D135: HRDCM | E135: 2020-02-20 | F135: 2020-03-05 | G135: 10 | H135: 0 | I135: =Table1[[#This Row],[Days Req.]]*Table1[[#This Row],[Progress]] -> 0
A136: Mobility Preference | B136: 6 | C136: Pre-Deployment Phase | D136: ITSPS | E136: 2020-03-05 | F136: 2020-03-12 | G136: 5 | H136: 0 | I136: =Table1[[#This Row],[Days Req.]]*Table1[[#This Row],[Progress]] -> 0
A137: Mobility Preference | B137: 7 | C137: Production Launch | D137: ITSPS | E137: 2020-03-31 | F137: 2020-03-31 | G137: 0 | H137: 0 | I137: =Table1[[#This Row],[Days Req.]]*Table1[[#This Row],[Progress]] -> 0
A138: Mobility Preference | B138: 8 | C138: myHRSS - mobile | D138: ITSPS | E138: 2020-04-01 | F138: 2020-04-28 | G138: 20 | H138: 0 | I138: =Table1[[#This Row],[Days Req.]]*Table1[[#This Row],[Progress]] -> 0
A139: Mobility Preference | B139: 9 | C139: Integrations | D139: ITSPS | E139: 2020-04-01 | F139: 2020-05-14 | G139: 0 | H139: 0 | I139: =Table1[[#This Row],[Days Req.]]*Table1[[#This Row],[Progress]] -> 0
A140: Mobility Preference | B140: 9.1 | C140: Integration to IDR | D140: ITSPS | E140: 2020-04-30 | F140: 2020-05-14 | G140: 10 | H140: 0 | I140: =Table1[[#This Row],[Days Req.]]*Table1[[#This Row],[Progress]] -> 0
A141: Mobility Preference | B141: 9.2 | C141: Integration to Pilat | D141: ITSPS | E141: 2020-04-01 | F141: 2020-04-15 | G141: 10 | H141: 0 | I141: =Table1[[#This Row],[Days Req.]]*Table1[[#This Row],[Progress]] -> 0
A142: Mobility Preference | B142: 10 | C142: Stabilization | D142: ITSPS | E142: 2020-04-01 | F142: 2020-12-30 | G142: 60 | H142: 0 | I142: =Table1[[#This Row],[Days Req.]]*Table1[[#This Row],[Progress]] -> 0
A143: Language Tracking | B143: 1 | C143: SPO QA Site Preparation | D143: New Person | E143: 2020-01-31 | F143: 2020-12-30 | G143: 0.5 | H143: 0 | I143: =Table1[[#This Row],[Days Req.]]*Table1[[#This Row],[Progress]] -> 0
A144: Language Tracking | B144: 2 | C144: Content Migration | D144: New Person | E144: 2020-02-03 | F144: 2020-12-30 | G144: 5 | H144: 0 | I144: =Table1[[#This Row],[Days Req.]]*Table1[[#This Row],[Progress]] -> 0
A145: Language Tracking | B145: 3 | C145: UI Migration | D145: New Person | E145: 2020-02-10 | F145: 2020-12-30 | G145: 1 | H145: 0 | I145: =Table1[[#This Row],[Days Req.]]*Table1[[#This Row],[Progress]] -> 0
A146: Language Tracking | B146: 4 | C146: Site Branding | D146: New Person | E146: 2020-02-11 | F146: 2020-12-30 | G146: 1 | H146: 0 | I146: =Table1[[#This Row],[Days Req.]]*Table1[[#This Row],[Progress]] -> 0
A147: Language Tracking | B147: 5 | C147: Out of Box WebPart migration | D147: New Person | E147: 2020-02-12 | F147: 2020-12-30 | G147: 20 | H147: 0 | I147: =Table1[[#This Row],[Days Req.]]*Table1[[#This Row],[Progress]] -> 0
A148: Language Tracking | B148: 6 | C148: Custom Solutions migration | D148: Kalaivani | E148: 2020-02-12 | F148: 2020-12-30 | G148: 55 | H148: 0 | I148: =Table1[[#This Row],[Days Req.]]*Table1[[#This Row],[Progress]] -> 0
A149: Language Tracking | B149: 7 | C149: Unit Testing | D149: New Person + Kalaivani | E149: 2020-04-23 | F149: 2020-12-30 | G149: 5 | H149: 0 | I149: =Table1[[#This Row],[Days Req.]]*Table1[[#This Row],[Progress]] -> 0
A150: Language Tracking | B150: 8 | C150: System Testing | D150: New Person + Kalaivani | E150: 2020-05-01 | F150: 2020-12-30 | G150: 5 | H150: 0 | I150: =Table1[[#This Row],[Days Req.]]*Table1[[#This Row],[Progress]] -> 0
A151: Language Tracking | B151: 9 | C151: UAT | D151: Business | E151: 2020-05-11 | F151: 2020-12-30 | G151: 5 | H151: 0 | I151: =Table1[[#This Row],[Days Req.]]*Table1[[#This Row],[Progress]] -> 0
A152: Language Tracking | B152: 10 | C152: Production Preparation | D152: Dev Team | E152: 2020-05-04 | F152: 2020-12-30 | G152: 5 | H152: 0 | I152: =Table1[[#This Row],[Days Req.]]*Table1[[#This Row],[Progress]] -> 0
A153: Language Tracking | B153: 11 | C153: Production Deployment | D153: Dev Team | E153: 2020-05-11 | F153: 2020-12-30 | G153: 10 | H153: 0 | I153: =Table1[[#This Row],[Days Req.]]*Table1[[#This Row],[Progress]] -> 0
A154: Language Tracking | B154: 12 | C154: Go Live | D154: NA | E154: 2020-05-25 | F154: 2020-12-30 | G154: 0 | H154: 0 | I154: =Table1[[#This Row],[Days Req.]]*Table1[[#This Row],[Progress]] -> 0
A155: Coaching | B155: 1 | C155: SPO QA Site Preparation | D155: Kalaivani | E155: 2019-11-25 | F155: 2020-12-30 | G155: 0.5 | H155: 1 | I155: =Table1[[#This Row],[Days Req.]]*Table1[[#This Row],[Progress]] -> 0.5
A156: Coaching | B156: 2 | C156: Content Migration | D156: Kalaivani | E156: 2019-11-25 | F156: 2020-12-30 | G156: 5 | H156: 1 | I156: =Table1[[#This Row],[Days Req.]]*Table1[[#This Row],[Progress]] -> 5
A157: Coaching | B157: 3 | C157: UI Migration | D157: Arul | E157: 2019-12-02 | F157: 2020-12-30 | G157: 1 | H157: 1 | I157: =Table1[[#This Row],[Days Req.]]*Table1[[#This Row],[Progress]] -> 1
A158: Coaching | B158: 4 | C158: Site Branding | D158: Arul | E158: 2019-12-03 | F158: 2020-12-30 | G158: 1 | H158: 1 | I158: =Table1[[#This Row],[Days Req.]]*Table1[[#This Row],[Progress]] -> 1
A159: Coaching | B159: 5 | C159: Out of Box WebPart migration | D159: Arul | E159: 2019-12-04 | F159: 2020-12-30 | G159: 20 | H159: 1 | I159: =Table1[[#This Row],[Days Req.]]*Table1[[#This Row],[Progress]] -> 20
A160: Coaching | B160: 6 | C160: Custom Solutions migration | D160: Kalaivani | E160: 2019-12-02 | F160: 2020-12-30 | G160: 45 | H160: 0.75 | I160: =Table1[[#This Row],[Days Req.]]*Table1[[#This Row],[Progress]] -> 33.75
A161: Coaching | B161: 7 | C161: Unit Testing | D161: New Person + Kalaivani | E161: 2020-02-10 | F161: 2020-12-30 | G161: 5 | H161: 0 | I161: =Table1[[#This Row],[Days Req.]]*Table1[[#This Row],[Progress]] -> 0
A162: Coaching | B162: 8 | C162: System Testing | D162: New Person + Kalaivani | E162: 2020-02-17 | F162: 2020-12-30 | G162: 5 | H162: 0 | I162: =Table1[[#This Row],[Days Req.]]*Table1[[#This Row],[Progress]] -> 0
A163: Coaching | B163: 9 | C163: UAT | D163: Business | E163: 2020-02-24 | F163: 2020-12-30 | G163: 5 | H163: 0 | I163: =Table1[[#This Row],[Days Req.]]*Table1[[#This Row],[Progress]] -> 0
A164: Coaching | B164: 10 | C164: Production Preparation | D164: Dev Team | E164: 2020-02-10 | F164: 2020-12-30 | G164: 5 | H164: 0 | I164: =Table1[[#This Row],[Days Req.]]*Table1[[#This Row],[Progress]] -> 0
A165: Coaching | B165: 11 | C165: Production Deployment | D165: Dev Team | E165: 2020-02-17 | F165: 2020-12-30 | G165: 10 | H165: 0 | I165: =Table1[[#This Row],[Days Req.]]*Table1[[#This Row],[Progress]] -> 0
A166: Coaching | B166: 12 | C166: Go Live | D166: Dev Team | E166: 2020-03-03 | F166: 2020-12-30 | G166: 0 | H166: 0 | I166: =Table1[[#This Row],[Days Req.]]*Table1[[#This Row],[Progress]] -> 0
A167: HireVue | B167: 1 | C167: Project Kickoff / Initial Workshops | E167: 2020-01-15 | F167: 2020-02-12 | G167: 0 | H167: 0 | I167: =Table1[[#This Row],[Days Req.]]*Table1[[#This Row],[Progress]] -> 0
A168: HireVue | B168: 1.1 | C168: Project Initiation | E168: 2020-01-15 | F168: 2020-02-05 | G168: 0 | H168: 0 | I168: =Table1[[#This Row],[Days Req.]]*Table1[[#This Row],[Progress]] -> 0
A169: HireVue | B169: 1.1.1 | C169: Project Kickoff | E169: 2020-01-15 | F169: 2020-01-29 | G169: 0 | H169: 0 | I169: =Table1[[#This Row],[Days Req.]]*Table1[[#This Row],[Progress]] -> 0
A170: HireVue | B170: 1.1.1.1 | C170: Review scope, expectations, schedule, and communication plan | E170: 2020-01-15 | F170: 2020-01-17 | G170: 3 | H170: 0 | I170: =Table1[[#This Row],[Days Req.]]*Table1[[#This Row],[Progress]] -> 0
A171: HireVue | B171: 1.1.2 | C171: Remote workshops | E171: 2020-01-21 | F171: 2020-02-05 | G171: 0 | H171: 0 | I171: =Table1[[#This Row],[Days Req.]]*Table1[[#This Row],[Progress]] -> 0
A172: HireVue | B172: 1.1.2.1 | C172: Review baseline metrics | E172: 2020-01-21 | F172: 2020-01-22 | G172: 2 | H172: 0 | I172: =Table1[[#This Row],[Days Req.]]*Table1[[#This Row],[Progress]] -> 0
A173: HireVue | B173: 1.1.2.2 | C173: Review current and to-be business process | E173: 2020-01-23 | F173: 2020-01-27 | G173: 3 | H173: 0 | I173: =Table1[[#This Row],[Days Req.]]*Table1[[#This Row],[Progress]] -> 0
A174: HireVue | B174: 1.1.2.3 | C174: Discuss recommendations for process improvements | E174: 2020-01-28 | F174: 2020-01-30 | G174: 3 | H174: 0 | I174: =Table1[[#This Row],[Days Req.]]*Table1[[#This Row],[Progress]] -> 0
A175: HireVue | B175: 1.1.2.4 | C175: Initial discussion of desired outcomes, success criteria, and metrics | E175: 2020-01-31 | F175: 2020-02-03 | G175: 2 | I175: =Table1[[#This Row],[Days Req.]]*Table1[[#This Row],[Progress]] -> 0
A176: HireVue | B176: 1.1.2.5 | C176: Stakeholder analysis focused on Recruiter, Hiring Manager, and Candidate experience | E176: 2020-02-04 | F176: 2020-02-05 | G176: 2 | I176: =Table1[[#This Row],[Days Req.]]*Table1[[#This Row],[Progress]] -> 0
A177: HireVue | B177: 1.1.3 | C177: Other follow-up workshops as needed to refine outcomes and success criteria | E177: 2020-01-21 | F177: 2020-02-05 | G177: 0 | I177: =Table1[[#This Row],[Days Req.]]*Table1[[#This Row],[Progress]] -> 0
A178: HireVue | B178: 1.2 | C178: Project Management | E178: 2020-02-06 | F178: 2020-02-10 | I178: =Table1[[#This Row],[Days Req.]]*Table1[[#This Row],[Progress]] -> 0
A179: HireVue | B179: 1.2.1 | C179: Plan weekly one hour project status meetings to review schedule, scope, issues, risks, and actions | E179: 2020-02-06 | F179: 2020-02-06 | G179: 1 | I179: =Table1[[#This Row],[Days Req.]]*Table1[[#This Row],[Progress]] -> 0
A180: HireVue | B180: 1.2.2 | C180: Plan management of schedule, issues and risk log | E180: 2020-02-07 | F180: 2020-02-07 | G180: 1 | I180: =Table1[[#This Row],[Days Req.]]*Table1[[#This Row],[Progress]] -> 0
A181: HireVue | B181: 1.2.3 | C181: Plan status reporting as needed as agreed between HireVue and Buyer Project Managers | E181: 2020-02-10 | F181: 2020-02-10 | G181: 1 | I181: =Table1[[#This Row],[Days Req.]]*Table1[[#This Row],[Progress]] -> 0
A182: HireVue | B182: 1.3 | C182: Communication and Adoption Support | E182: 2020-02-11 | F182: 2020-02-12 | I182: =Table1[[#This Row],[Days Req.]]*Table1[[#This Row],[Progress]] -> 0
A183: HireVue | B183: 1.3.1 | C183: Define best practices on candidate and user communication | E183: 2020-02-11 | F183: 2020-02-11 | G183: 1 | I183: =Table1[[#This Row],[Days Req.]]*Table1[[#This Row],[Progress]] -> 0
A184: HireVue | B184: 1.3.2 | C184: Provide sample templates for candidate, recruiter, and hiring manager communication materials | E184: 2020-02-12 | F184: 2020-02-12 | G184: 1 | I184: =Table1[[#This Row],[Days Req.]]*Table1[[#This Row],[Progress]] -> 0
A185: HireVue | B185: 1.4 | C185: Pre- and Post- Go Live Support | E185: 2020-02-12 | F185: 2020-02-12 | G185: 0 | I185: =Table1[[#This Row],[Days Req.]]*Table1[[#This Row],[Progress]] -> 0
A186: HireVue | B186: 1.4.1 | C186: Define formal transition to Customer Support | E186: 2020-02-12 | F186: 2020-02-12 | G186: 0 | I186: =Table1[[#This Row],[Days Req.]]*Table1[[#This Row],[Progress]] -> 0
A187: HireVue | C187: 1. Milestones | E187: 2020-01-15 | F187: 2020-02-12 | I187: =Table1[[#This Row],[Days Req.]]*Table1[[#This Row],[Progress]] -> 0
A188: HireVue | C188: Issues and risk lists | E188: 2020-01-15 | F188: 2020-02-12 | I188: =Table1[[#This Row],[Days Req.]]*Table1[[#This Row],[Progress]] -> 0
A189: HireVue | C189: Project Plan | E189: 2020-01-15 | F189: 2020-02-12 | I189: =Table1[[#This Row],[Days Req.]]*Table1[[#This Row],[Progress]] -> 0
A190: HireVue | B190: 2 | C190: HireVue Video Interviewing and Base Configuration | E190: 2020-02-13 | F190: 2020-03-31 | G190: 33 | I190: =Table1[[#This Row],[Days Req.]]*Table1[[#This Row],[Progress]] -> 0
A191: HireVue | B191: 2.1 | C191: Development of one (1) standard theme (logo, image, and page colors are configurable) | E191: 2020-02-13 | F191: 2020-03-31 | I191: =Table1[[#This Row],[Days Req.]]*Table1[[#This Row],[Progress]] -> 0
A192: HireVue | B192: 2.2 | C192: Account Setup | E192: 2020-02-13 | F192: 2020-03-31 | I192: =Table1[[#This Row],[Days Req.]]*Table1[[#This Row],[Progress]] -> 0
A193: HireVue | B193: 2.3 | C193: 2. Milestones | E193: 2020-03-27 | F193: 2020-03-27
A194: HireVue | B194: 2.3.1 | C194: Initial configured system in one (1) production environment with branding, users and roles | E194: 2020-03-27 | F194: 2020-03-27
A195: HireVue | B195: 3 | C195: HireVue Assessments | E195: 2020-02-13 | F195: 2020-03-31 | G195: 33 | I195: =Table1[[#This Row],[Days Req.]]*Table1[[#This Row],[Progress]] -> 0
A196: HireVue | B196: 3.1 | C196: Job Analysis | E196: 2020-02-13 | F196: 2020-03-31 | I196: =Table1[[#This Row],[Days Req.]]*Table1[[#This Row],[Progress]] -> 0
A197: HireVue | B197: 3.2 | C197: Confirm Pre-Built Assessments | E197: 2020-02-13 | F197: 2020-03-31 | I197: =Table1[[#This Row],[Days Req.]]*Table1[[#This Row],[Progress]] -> 0
A198: HireVue | B198: 3.3 | C198: Implement | E198: 2020-02-13 | F198: 2020-03-31 | I198: =Table1[[#This Row],[Days Req.]]*Table1[[#This Row],[Progress]] -> 0
A199: HireVue | B199: 3.4 | C199: Monitor and Optimization of Model | E199: 2020-02-13 | F199: 2020-03-31 | I199: =Table1[[#This Row],[Days Req.]]*Table1[[#This Row],[Progress]] -> 0
A200: HireVue | B200: 3.5 | C200: 3. Milestones | E200: 2020-02-13 | F200: 2020-03-31 | I200: =Table1[[#This Row],[Days Req.]]*Table1[[#This Row],[Progress]] -> 0
... 49 more rows

Sheet Advanced Project Plan Template (hidden)
